Workbook

Sheet мужчины б.
A1: Текущий рейтинг
A2: Мужчины, болдеринг
A3: на 9.03.2015 года | F3: КРБ-2013 | G3: ЧРБ-2014 | H3: КРБ-2014 | I3: ЧРБ-2015 | J3: общий рез-т
A4: № | B4: Фамилия, Имя | C4: Команда | D4: г.р. | E4: Подтвержденный разряд | F4: Пинск | G4: Минск | H4: Пинск | I4: Минск
F5: 22-25.11 | G5: 21-23.02 | H5: 22-23.11 | I5: 27.02-1.03
A6: 1 | B6: Клюжев Александр | C6: =VLOOKUP(B6:B67,'разряды м.'!$A$5:$AB$205,2,FALSE) -> Гомельская обл. | D6: =VLOOKUP(B6:B67,'разряды м.'!$A$5:$AB$205,3,FALSE) -> 1997 | E6: =VLOOKUP(B:B,'разряды м.'!$A$5:$AB$205,28,FALSE) -> МС | F6: 91.2 | G6: 82.9 | H6: 45.5 | I6: 80 | J6: =SUM(F6:I6) -> 299.6
A7: 2 | B7: Никифоровец Максим | C7: =VLOOKUP(B7:B68,'разряды м.'!$A$5:$AB$205,2,FALSE) -> Минск | D7: =VLOOKUP(B7:B68,'разряды м.'!$A$5:$AB$205,3,FALSE) -> 1997 | E7: =VLOOKUP(B:B,'разряды м.'!$A$5:$AB$205,28,FALSE) -> КМС | F7: 59.3 | G7: 66.3 | I7: 64 | J7: 189.6
A8: 3 | B8: Никифоровец Андрей | C8: =VLOOKUP(B8:B69,'разряды м.'!$A$5:$AB$205,2,FALSE) -> Минск | D8: =VLOOKUP(B8:B69,'разряды м.'!$A$5:$AB$205,3,FALSE) -> 1974 | E8: =VLOOKUP(B:B,'разряды м.'!$A$5:$AB$205,28,FALSE) -> МС | F8: 73 | H8: 70 | I8: 37.6 | J8: 180.6
A9: 4 | B9: Волосович Дмитрий | C9: =VLOOKUP(B9:B70,'разряды м.'!$A$5:$AB$205,2,FALSE) -> Гомельская обл. | D9: =VLOOKUP(B9:B70,'разряды м.'!$A$5:$AB$205,3,FALSE) -> 1995 | E9: =VLOOKUP(B:B,'разряды м.'!$A$5:$AB$205,28,FALSE) -> КМС | F9: 50.2 | G9: 45.6 | I9: 52 | J9: 147.8
A10: 5 | B10: Драбинко Артур | C10: =VLOOKUP(B10:B71,'разряды м.'!$A$5:$AB$205,2,FALSE) -> Бобруйск | D10: =VLOOKUP(B10:B71,'разряды м.'!$A$5:$AB$205,3,FALSE) -> 1994 | E10: =VLOOKUP(B:B,'разряды м.'!$A$5:$AB$205,28,FALSE) -> КМС | F10: 20.1 | G10: 42.3 | H10: 56 | J10: 118.4
A11: 6 | B11: Никоноров Дмитрий | C11: =VLOOKUP(B11:B72,'разряды м.'!$A$5:$AB$205,2,FALSE) -> Пуховичский р-н | D11: =VLOOKUP(B11:B72,'разряды м.'!$A$5:$AB$205,3,FALSE) -> 1997 | E11: =VLOOKUP(B:B,'разряды м.'!$A$5:$AB$205,28,FALSE) -> КМС | F11: 33.7 | G11: 28.2 | I11: 40.8 | J11: 102.7
A12: 7 | B12: Тарасенко Владислав | C12: =VLOOKUP(B12:B73,'разряды м.'!$A$5:$AB$205,2,FALSE) -> Пуховичский р-н | D12: =VLOOKUP(B12:B73,'разряды м.'!$A$5:$AB$205,3,FALSE) -> 1995 | E12: =VLOOKUP(B:B,'разряды м.'!$A$5:$AB$205,28,FALSE) -> КМС | F12: 39.2 | G12: 53.9 | J12: 93.1
A13: 8 | B13: Яцыно Павел | C13: =VLOOKUP(B13:B74,'разряды м.'!$A$5:$AB$205,2,FALSE) -> Витебск | D13: =VLOOKUP(B13:B74,'разряды м.'!$A$5:$AB$205,3,FALSE) -> 1986 | E13: =VLOOKUP(B:B,'разряды м.'!$A$5:$AB$205,28,FALSE) -> КМС | F13: 36.5 | G13: 19.2 | H13: 18.2 | I13: 17.6 | J13: 91.5
A14: 9 | B14: Максименя Денис | C14: =VLOOKUP(B14:B75,'разряды м.'!$A$5:$AB$205,2,FALSE) -> Минск | D14: =VLOOKUP(B14:B75,'разряды м.'!$A$5:$AB$205,3,FALSE) -> 1996 | E14: =VLOOKUP(B:B,'разряды м.'!$A$5:$AB$205,28,FALSE) -> КМС | F14: 22.8 | G14: 33.2 | H14: 30.1 | J14: 86.1
A15: 10 | B15: Логунов Никита | C15: =VLOOKUP(B15:B76,'разряды м.'!$A$5:$AB$205,2,FALSE) -> ДЮСШ «Омега» Гом. | D15: =VLOOKUP(B15:B76,'разряды м.'!$A$5:$AB$205,3,FALSE) -> 1999 | E15: =VLOOKUP(B:B,'разряды м.'!$A$5:$AB$205,28,FALSE) -> КМС | F15: 46.5 | G15: 35.7 | J15: 82.2
A16: 11 | B16: Федотов Сергей | C16: =VLOOKUP(B16:B77,'разряды м.'!$A$5:$AB$205,2,FALSE) -> Бобруйск | D16: =VLOOKUP(B16:B77,'разряды м.'!$A$5:$AB$205,3,FALSE) -> 1990 | E16: =VLOOKUP(B:B,'разряды м.'!$A$5:$AB$205,28,FALSE) -> КМС | G16: 39 | H16: 38.5 | J16: 77.5
A17: 12 | B17: Дюбенков Дмитрий | C17: =VLOOKUP(B17:B78,'разряды м.'!$A$5:$AB$205,2,FALSE) -> Гомельская обл. | D17: =VLOOKUP(B17:B78,'разряды м.'!$A$5:$AB$205,3,FALSE) -> 1992 | E17: =VLOOKUP(B:B,'разряды м.'!$A$5:$AB$205,28,FALSE) -> КМС | F17: 16.4 | G17: 14.9 | I17: 44 | J17: 75.3
A18: 13 | B18: Пахомов Александр | C18: =VLOOKUP(B18:B79,'разряды м.'!$A$5:$AB$205,2,FALSE) -> Бобруйск | D18: =VLOOKUP(B18:B79,'разряды м.'!$A$5:$AB$205,3,FALSE) -> 1983 | E18: =VLOOKUP(B:B,'разряды м.'!$A$5:$AB$205,28,FALSE) -> КМС | F18: 28.3 | G18: 19.9 | H18: 23.8 | J18: 72
A19: 14 | B19: Морозов Юрий | C19: =VLOOKUP(B19:B80,'разряды м.'!$A$5:$AB$205,2,FALSE) -> Хан-Тенгри | D19: =VLOOKUP(B19:B80,'разряды м.'!$A$5:$AB$205,3,FALSE) -> 1992 | E19: =VLOOKUP(B:B,'разряды м.'!$A$5:$AB$205,28,FALSE) -> КМС | F19: 22.8 | G19: 23.2 | I19: 24.8 | J19: 70.8
A20: 15 | B20: Малаховский Александр | C20: =VLOOKUP(B20:B81,'разряды м.'!$A$5:$AB$205,2,FALSE) -> Хан-Тенгри | D20: =VLOOKUP(B20:B81,'разряды м.'!$A$5:$AB$205,3,FALSE) -> 1985 | E20: =VLOOKUP(B:B,'разряды м.'!$A$5:$AB$205,28,FALSE) -> 1 | F20: 31 | I20: 32 | J20: 63
A21: 16 | B21: Караваев Дмитрий | C21: =VLOOKUP(B21:B82,'разряды м.'!$A$5:$AB$205,2,FALSE) -> Гомельская обл. | D21: =VLOOKUP(B21:B82,'разряды м.'!$A$5:$AB$205,3,FALSE) -> 1993 | E21: =VLOOKUP(B:B,'разряды м.'!$A$5:$AB$205,28,FALSE) -> КМС | F21: 12.8 | G21: 25.7 | I21: 19.2 | J21: 57.7
A22: 17 | B22: Изидеров Никита | C22: =VLOOKUP(B22:B83,'разряды м.'!$A$5:$AB$205,2,FALSE) -> Полоцк | D22: =VLOOKUP(B22:B83,'разряды м.'!$A$5:$AB$205,3,FALSE) -> 1994 | E22: =VLOOKUP(B:B,'разряды м.'!$A$5:$AB$205,28,FALSE) -> КМС | G22: 21.6 | H22: 35.7 | J22: 57.3
A23: 18 | B23: Соковых Евгений | C23: =VLOOKUP(B23:B84,'разряды м.'!$A$5:$AB$205,2,FALSE) -> Хан-Тенгри | D23: =VLOOKUP(B23:B84,'разряды м.'!$A$5:$AB$205,3,FALSE) -> 1988 | E23: =VLOOKUP(B:B,'разряды м.'!$A$5:$AB$205,28,FALSE) -> КМС | F23: 25.5 | G23: 16.6 | I23: 12.8 | J23: 54.9
A24: 19 | B24: Демешко Александр | C24: =VLOOKUP(B24:B85,'разряды м.'!$A$5:$AB$205,2,FALSE) -> Хан-Тенгри | D24: =VLOOKUP(B24:B85,'разряды м.'!$A$5:$AB$205,3,FALSE) -> 1994 | E24: =VLOOKUP(B:B,'разряды м.'!$A$5:$AB$205,28,FALSE) -> 1 | F24: 18.2 | I24: 34.4 | J24: 52.6
A25: 20 | B25: Грибовский Павел | C25: =VLOOKUP(B25:B86,'разряды м.'!$A$5:$AB$205,2,FALSE) -> Бобруйск | D25: =VLOOKUP(B25:B86,'разряды м.'!$A$5:$AB$205,3,FALSE) -> 1885 | E25: =VLOOKUP(B:B,'разряды м.'!$A$5:$AB$205,28,FALSE) -> КМС | G25: 30.7 | H25: 19.6 | J25: 50.3
A26: 21 | B26: Саунин Кирилл | C26: =VLOOKUP(B26:B87,'разряды м.'!$A$5:$AB$205,2,FALSE) -> Пинск | D26: =VLOOKUP(B26:B87,'разряды м.'!$A$5:$AB$205,3,FALSE) -> 1989 | E26: =VLOOKUP(B:B,'разряды м.'!$A$5:$AB$205,28,FALSE) -> 1 | H26: 28 | I26: 20.8 | J26: 48.8
A27: 22 | B27: Денисман Юрий | C27: =VLOOKUP(B27:B88,'разряды м.'!$A$5:$AB$205,2,FALSE) -> MinskOnsight Мн. | D27: =VLOOKUP(B27:B88,'разряды м.'!$A$5:$AB$205,3,FALSE) -> 1982 | E27: =VLOOKUP(B:B,'разряды м.'!$A$5:$AB$205,28,FALSE) -> КМС | F27: 42.9 | G27: 0.8 | H27: 4.2 | J27: 47.9
A28: 23 | B28: Буйленков Павел | C28: =VLOOKUP(B28:B89,'разряды м.'!$A$5:$AB$205,2,FALSE) -> Гомельская обл. | D28: =VLOOKUP(B28:B89,'разряды м.'!$A$5:$AB$205,3,FALSE) -> 1993 | E28: =VLOOKUP(B:B,'разряды м.'!$A$5:$AB$205,28,FALSE) -> КМС | F28: 9.1 | G28: 6.6 | I28: 29.6 | J28: 45.3
A29: 24 | B29: Вальковский Владимир | C29: =VLOOKUP(B29:B90,'разряды м.'!$A$5:$AB$205,2,FALSE) -> ГОЦТиКДиМ Гомель | D29: =VLOOKUP(B29:B90,'разряды м.'!$A$5:$AB$205,3,FALSE) -> 1992 | E29: =VLOOKUP(B:B,'разряды м.'!$A$5:$AB$205,28,FALSE) -> КМС | G29: 13.3 | H29: 25.9 | J29: 39.2
A30: 25 | B30: Добрянский Александр | C30: =VLOOKUP(B30:B91,'разряды м.'!$A$5:$AB$205,2,FALSE) -> Шклов | D30: =VLOOKUP(B30:B91,'разряды м.'!$A$5:$AB$205,3,FALSE) -> 1994 | E30: =VLOOKUP(B:B,'разряды м.'!$A$5:$AB$205,28,FALSE) -> 1 | H30: 32.9 | J30: 32.9
A31: 26 | B31: Голубев Сергей | C31: =VLOOKUP(B31:B92,'разряды м.'!$A$5:$AB$205,2,FALSE) -> MinskOnsight Мн. | D31: =VLOOKUP(B31:B92,'разряды м.'!$A$5:$AB$205,3,FALSE) -> 1985 | E31: =VLOOKUP(B:B,'разряды м.'!$A$5:$AB$205,28,FALSE) -> 2 | F31: 10.9 | H31: 21.7 | J31: 32.6
A32: 27 | B32: Липский Кирилл | C32: =VLOOKUP(B32:B88,'разряды м.'!$A$5:$AB$205,2,FALSE) -> Минск | D32: =VLOOKUP(B32:B88,'разряды м.'!$A$5:$AB$205,3,FALSE) -> 1986 | E32: =VLOOKUP(B:B,'разряды м.'!$A$5:$AB$205,28,FALSE) -> 2 | H32: 7.7 | I32: 22.4 | J32: 30.1
A33: 28 | B33: Свито Иван | C33: =VLOOKUP(B33:B94,'разряды м.'!$A$5:$AB$205,2,FALSE) -> Хан-Тенгри | D33: =VLOOKUP(B33:B94,'разряды м.'!$A$5:$AB$205,3,FALSE) -> 1982 | E33: =VLOOKUP(B:B,'разряды м.'!$A$5:$AB$205,28,FALSE) -> 1 | G33: 2.5 | H33: 16.8 | I33: 10 | J33: 29.3
A34: 29 | B34: Яковлев Юрий | C34: =VLOOKUP(B34:B89,'разряды м.'!$A$5:$AB$205,2,FALSE) -> Хан-Тенгри | D34: =VLOOKUP(B34:B89,'разряды м.'!$A$5:$AB$205,3,FALSE) -> 1986 | E34: =VLOOKUP(B:B,'разряды м.'!$A$5:$AB$205,28,FALSE) -> 2 | I34: 27.2 | J34: 27.2
A35: 30 | B35: Давыдов Денис | C35: =VLOOKUP(B35:B91,'разряды м.'!$A$5:$AB$205,2,FALSE) -> Минск | D35: =VLOOKUP(B35:B91,'разряды м.'!$A$5:$AB$205,3,FALSE) -> 2000 | E35: =VLOOKUP(B:B,'разряды м.'!$A$5:$AB$205,28,FALSE) -> 1 | H35: 10.5 | I35: 14.4 | J35: 24.9
A36: 31 | B36: Винчевский Максим | C36: =VLOOKUP(B36:B97,'разряды м.'!$A$5:$AB$205,2,FALSE) -> Хан-Тенгри | D36: =VLOOKUP(B36:B97,'разряды м.'!$A$5:$AB$205,3,FALSE) -> 1991 | E36: =VLOOKUP(B:B,'разряды м.'!$A$5:$AB$205,28,FALSE) -> 2 | H36: 15.4 | I36: 6.4 | J36: 21.8
A37: 32 | B37: Ченуша Алексей | C37: =VLOOKUP(B37:B93,'разряды м.'!$A$5:$AB$205,2,FALSE) -> Хан-Тенгри | D37: =VLOOKUP(B37:B93,'разряды м.'!$A$5:$AB$205,3,FALSE) -> 1969 | E37: =VLOOKUP(B:B,'разряды м.'!$A$5:$AB$205,28,FALSE) -> 1 | F37: 1.4 | I37: 16 | J37: 17.4
A38: 33 | B38: Бессер Родион | C38: =VLOOKUP(B38:B99,'разряды м.'!$A$5:$AB$205,2,FALSE) -> MinskOnsight Мн. | D38: =VLOOKUP(B38:B99,'разряды м.'!$A$5:$AB$205,3,FALSE) -> 1981 | E38: =VLOOKUP(B:B,'разряды м.'!$A$5:$AB$205,28,FALSE) -> 1 | F38: 6.8 | G38: 10 | J38: =SUM(F38:I38) -> 16.8
A39: 34 | B39: Максименя Александр | C39: =VLOOKUP(B39:B95,'разряды м.'!$A$5:$AB$205,2,FALSE) -> Хан-Тенгри | D39: =VLOOKUP(B39:B95,'разряды м.'!$A$5:$AB$205,3,FALSE) -> 1975 | E39: =VLOOKUP(B:B,'разряды м.'!$A$5:$AB$205,28,FALSE) -> 1 | F39: 6.8 | G39: 3.3 | I39: 6.4 | J39: 16.5
A40: 35 | B40: Ложкин Денис | C40: =VLOOKUP(B40:B101,'разряды м.'!$A$5:$AB$205,2,FALSE) -> MinskOnsight Мн. | D40: =VLOOKUP(B40:B101,'разряды м.'!$A$5:$AB$205,3,FALSE) -> 1983 | E40: =VLOOKUP(B:B,'разряды м.'!$A$5:$AB$205,28,FALSE) -> 1 | G40: 5.8 | H40: 10.5 | J40: 16.3
A41: 36 | B41: Стариков Павел | C41: =VLOOKUP(B41:B102,'разряды м.'!$A$5:$AB$205,2,FALSE) -> С/к «Торпедо» Мг. | D41: =VLOOKUP(B41:B102,'разряды м.'!$A$5:$AB$205,3,FALSE) -> 1996 | E41: =VLOOKUP(B:B,'разряды м.'!$A$5:$AB$205,28,FALSE) -> 2 | F41: 14.6 | J41: 14.6
A42: 37 | B42: Иванов Александр | C42: =VLOOKUP(B42:B103,'разряды м.'!$A$5:$AB$205,2,FALSE) -> Минск | D42: =VLOOKUP(B42:B103,'разряды м.'!$A$5:$AB$205,3,FALSE) -> 1992 | E42: =VLOOKUP(B:B,'разряды м.'!$A$5:$AB$205,28,FALSE) -> 2 | H42: 14 | J42: 14
A43: 38 | B43: Дудянов Евгений | C43: =VLOOKUP(B43:B99,'разряды м.'!$A$5:$AB$205,2,FALSE) -> ГОЦТиКДиМ Гомель | D43: =VLOOKUP(B43:B99,'разряды м.'!$A$5:$AB$205,3,FALSE) -> 1996 | E43: =VLOOKUP(B:B,'разряды м.'!$A$5:$AB$205,28,FALSE) -> 3 | H43: 6.3 | I43: 6.4 | J43: 12.7
A44: 39 | B44: Киселев Евгений | C44: =VLOOKUP(B44:B102,'разряды м.'!$A$5:$AB$205,2,FALSE) -> Шклов | D44: =VLOOKUP(B44:B102,'разряды м.'!$A$5:$AB$205,3,FALSE) -> 1999 | E44: =VLOOKUP(B:B,'разряды м.'!$A$5:$AB$205,28,FALSE) -> 1 | H44: 12.6 | J44: 12.6
A45: 40 | B45: Пуйто Антон | C45: =VLOOKUP(B45:B102,'разряды м.'!$A$5:$AB$205,2,FALSE) -> ГОЦТиКДиМ Гомель | D45: =VLOOKUP(B45:B102,'разряды м.'!$A$5:$AB$205,3,FALSE) -> 1998 | E45: =VLOOKUP(B:B,'разряды м.'!$A$5:$AB$205,28,FALSE) -> 1 | F45: 4.6 | H45: 7.7 | J45: 12.3
A46: 41 | B46: Гутиков Роман | C46: =VLOOKUP(B46:B102,'разряды м.'!$A$5:$AB$205,2,FALSE) -> Орша | D46: =VLOOKUP(B46:B102,'разряды м.'!$A$5:$AB$205,3,FALSE) -> 1989 | E46: =VLOOKUP(B:B,'разряды м.'!$A$5:$AB$205,28,FALSE) -> 1 | F46: 6.8 | G46: 5 | J46: 11.8
A47: 42 | B47: Пристромов Антон | C47: =VLOOKUP(B47:B103,'разряды м.'!$A$5:$AB$205,2,FALSE) -> ДЮСШ «Омега» Гом. | D47: =VLOOKUP(B47:B103,'разряды м.'!$A$5:$AB$205,3,FALSE) -> 1988 | E47: =VLOOKUP(B:B,'разряды м.'!$A$5:$AB$205,28,FALSE) -> КМС | G47: 11.6 | J47: 11.6
A48: 43 | B48: Зюзин Иван | C48: =VLOOKUP(B48:B104,'разряды м.'!$A$5:$AB$205,2,FALSE) -> Минск | D48: =VLOOKUP(B48:B104,'разряды м.'!$A$5:$AB$205,3,FALSE) -> 2001 | E48: =VLOOKUP(B:B,'разряды м.'!$A$5:$AB$205,28,FALSE) -> 1 | I48: 10 | J48: 10
A49: 44 | B49: Остроухов Егор | C49: =VLOOKUP(B49:B105,'разряды м.'!$A$5:$AB$205,2,FALSE) -> ПРЦДиМ Полоцк | D49: =VLOOKUP(B49:B105,'разряды м.'!$A$5:$AB$205,3,FALSE) -> 1973 | E49: =VLOOKUP(B:B,'разряды м.'!$A$5:$AB$205,28,FALSE) -> 1 | G49: 8.3 | I49: 1.6 | J49: 9.9
A50: 45 | B50: Таршис Иван | C50: =VLOOKUP(B50:B107,'разряды м.'!$A$5:$AB$205,2,FALSE) -> ГОЦТиКДиМ Гомель | D50: =VLOOKUP(B50:B107,'разряды м.'!$A$5:$AB$205,3,FALSE) -> 1998 | E50: =VLOOKUP(B:B,'разряды м.'!$A$5:$AB$205,28,FALSE) -> 1 | I50: 8 | J50: 8
A51: 46 | B51: Бабанов Игорь | C51: =VLOOKUP(B51:B107,'разряды м.'!$A$5:$AB$205,2,FALSE) -> С/к «Торпедо» Мг. | D51: =VLOOKUP(B51:B107,'разряды м.'!$A$5:$AB$205,3,FALSE) -> 1989 | E51: =VLOOKUP(B:B,'разряды м.'!$A$5:$AB$205,28,FALSE) -> 1 | G51: 7.5 | J51: 7.5
A52: 47 | B52: Денисевич Евгений | C52: =VLOOKUP(B52:B108,'разряды м.'!$A$5:$AB$205,2,FALSE) -> Брестская область | D52: =VLOOKUP(B52:B108,'разряды м.'!$A$5:$AB$205,3,FALSE) -> 1994 | E52: =VLOOKUP(B:B,'разряды м.'!$A$5:$AB$205,28,FALSE) -> КМС | F52: 6.8 | J52: 6.8
A53: 48 | B53: Харчик Максим | C53: =VLOOKUP(B53:B109,'разряды м.'!$A$5:$AB$205,2,FALSE) -> Брестская область | D53: =VLOOKUP(B53:B109,'разряды м.'!$A$5:$AB$205,3,FALSE) -> 1998 | E53: =VLOOKUP(B:B,'разряды м.'!$A$5:$AB$205,28,FALSE) -> 3 | H53: 5.6 | J53: 5.6
A54: 49 | B54: Живица Арсений | C54: =VLOOKUP(B54:B110,'разряды м.'!$A$5:$AB$205,2,FALSE) -> Минск | D54: =VLOOKUP(B54:B110,'разряды м.'!$A$5:$AB$205,3,FALSE) -> 2000 | E54: =VLOOKUP(B:B,'разряды м.'!$A$5:$AB$205,28,FALSE) -> 1 | H54: 1.05 | I54: 4.4 | J54: 5.45
A55: 50 | B55: Мертенс Андрей | C55: =VLOOKUP(B55:B111,'разряды м.'!$A$5:$AB$205,2,FALSE) -> г. Витебск | D55: =VLOOKUP(B55:B111,'разряды м.'!$A$5:$AB$205,3,FALSE) -> 1992 | E55: =VLOOKUP(B:B,'разряды м.'!$A$5:$AB$205,28,FALSE) -> 3 | H55: 4.9 | J55: 4.9
A56: 51 | B56: Дишук Вадим | C56: =VLOOKUP(B56:B115,'разряды м.'!$A$5:$AB$205,2,FALSE) -> Хан-Тенгри | D56: =VLOOKUP(B56:B115,'разряды м.'!$A$5:$AB$205,3,FALSE) -> 1985 | E56: =VLOOKUP(B:B,'разряды м.'!$A$5:$AB$205,28,FALSE) -> б/р | I56: 4.4 | J56: 4.4
A57: 52 | B57: Петровский Максим | C57: =VLOOKUP(B57:B115,'разряды м.'!$A$5:$AB$205,2,FALSE) -> Минск | D57: =VLOOKUP(B57:B115,'разряды м.'!$A$5:$AB$205,3,FALSE) -> 1987 | E57: =VLOOKUP(B:B,'разряды м.'!$A$5:$AB$205,28,FALSE) -> б/р | I57: 4.4 | J57: 4.4
A58: 53 | B58: Сычев Николай | C58: =VLOOKUP(B58:B114,'разряды м.'!$A$5:$AB$205,2,FALSE) -> Гомельская обл. | D58: =VLOOKUP(B58:B114,'разряды м.'!$A$5:$AB$205,3,FALSE) -> 1978 | E58: =VLOOKUP(B:B,'разряды м.'!$A$5:$AB$205,28,FALSE) -> 1 | G58: 4.1 | J58: 4.1
A59: 54 | B59: Федоров Игорь | C59: =VLOOKUP(B59:B115,'разряды м.'!$A$5:$AB$205,2,FALSE) -> Хан-Тенгри | D59: =VLOOKUP(B59:B115,'разряды м.'!$A$5:$AB$205,3,FALSE) -> 1977 | E59: =VLOOKUP(B:B,'разряды м.'!$A$5:$AB$205,28,FALSE) -> 1 | F59: 3.6 | J59: 3.6
A60: 55 | B60: Коновалов Евгений | C60: =VLOOKUP(B60:B116,'разряды м.'!$A$5:$AB$205,2,FALSE) ->  | D60: =VLOOKUP(B60:B116,'разряды м.'!$A$5:$AB$205,3,FALSE) ->  | E60: =VLOOKUP(B:B,'разряды м.'!$A$5:$AB$205,28,FALSE) ->  | H60: 3.15 | J60: 3.15
A61: 56 | B61: Рубенок Артем | C61: =VLOOKUP(B61:B117,'разряды м.'!$A$5:$AB$205,2,FALSE) -> Витебск | D61: =VLOOKUP(B61:B117,'разряды м.'!$A$5:$AB$205,3,FALSE) -> 1986 | E61: =VLOOKUP(B:B,'разряды м.'!$A$5:$AB$205,28,FALSE) -> 1 | H61: 3.15 | J61: 3.15
A62: 57 | B62: Сердаков Илья | C62: =VLOOKUP(B62:B118,'разряды м.'!$A$5:$AB$205,2,FALSE) -> ГОЦТиКДиМ Гомель | D62: =VLOOKUP(B62:B118,'разряды м.'!$A$5:$AB$205,3,FALSE) -> 1999 | E62: =VLOOKUP(B:B,'разряды м.'!$A$5:$AB$205,28,FALSE) -> КМС | F62: 1.4 | G62: 1.7 | J62: 3.1
A63: 58 | B63: Бруев Денис | C63: =VLOOKUP(B63:B119,'разряды м.'!$A$5:$AB$205,2,FALSE) ->  | D63: =VLOOKUP(B63:B119,'разряды м.'!$A$5:$AB$205,3,FALSE) ->  | E63: =VLOOKUP(B:B,'разряды м.'!$A$5:$AB$205,28,FALSE) ->  | F63: 2.7 | J63: 2.7
A64: 59 | B64: Морозов Игорь | C64: =VLOOKUP(B64:B125,'разряды м.'!$A$5:$AB$205,2,FALSE) -> Хан-Тенгри | D64: =VLOOKUP(B64:B125,'разряды м.'!$A$5:$AB$205,3,FALSE) -> 1970 | E64: =VLOOKUP(B:B,'разряды м.'!$A$5:$AB$205,28,FALSE) -> б/р | I64: 2.4 | J64: 2.4
A65: 60 | B65: Ионочкин Александр | C65: =VLOOKUP(B65:B121,'разряды м.'!$A$5:$AB$205,2,FALSE) ->  | D65: =VLOOKUP(B65:B121,'разряды м.'!$A$5:$AB$205,3,FALSE) ->  | E65: =VLOOKUP(B:B,'разряды м.'!$A$5:$AB$205,28,FALSE) ->  | H65: 1.05 | J65: 1.05
A66: 61 | B66: Чернявский Артем | C66: =VLOOKUP(B66:B127,'разряды м.'!$A$5:$AB$205,2,FALSE) -> Витебск | D66: =VLOOKUP(B66:B127,'разряды м.'!$A$5:$AB$205,3,FALSE) -> 1987 | E66: =VLOOKUP(B:B,'разряды м.'!$A$5:$AB$205,28,FALSE) -> б/р | J66: 0.8
A67: 62 | B67: Макеенко Михаил | C67: =VLOOKUP(B67:B121,'разряды м.'!$A$5:$AB$205,2,FALSE) ->  | D67: =VLOOKUP(B67:B121,'разряды м.'!$A$5:$AB$205,3,FALSE) ->  | E67: =VLOOKUP(B:B,'разряды м.'!$A$5:$AB$205,28,FALSE) ->  | H67: 0.7 | J67: =SUM(F67:I67) -> 0.7

Sheet женщины б.
A1: Текущий рейтинг
A2: Женщины, болдеринг
A3: на 9.03.2015 года | F3: КРБ-2013 | G3: ЧРБ-2014 | H3: КРБ-2014 | I3: ЧРБ-2015 | J3: общий рез-т
A4: № п/п | B4: Фамилия, Имя | C4: Команда | D4: г.р. | E4: Подтвержденный разряд | F4: Пинск | G4: Минск | H4: Пинск | I4: Минск
F5: 22-25.11 | G5: 21-23.02 | H5: 22-23.11 | I5: 27.02-1.03
A6: 1 | B6: Рак Ольга | C6: =VLOOKUP($B$6:$B$48,'разряды ж.'!$A$5:$AB$202,2,FALSE) -> Пуховичский р-н | D6: =VLOOKUP($B$6:$B$48,'разряды ж.'!$A$5:$AB$202,3,FALSE) -> 1985 | E6: =VLOOKUP($B$6:$B$48,'разряды ж.'!$A$5:$AB$202,28,FALSE) -> МС | F6: 89.5 | G6: 88 | H6: 36 | I6: 60.2 | J6: =SUM(F6:I6) -> 273.7
A7: 2 | B7: Малыженкова Лариса | C7: =VLOOKUP($B$6:$B$48,'разряды ж.'!$A$5:$AB$202,2,FALSE) -> Минск | D7: =VLOOKUP($B$6:$B$48,'разряды ж.'!$A$5:$AB$202,3,FALSE) -> 1975 | E7: =VLOOKUP($B$6:$B$48,'разряды ж.'!$A$5:$AB$202,28,FALSE) -> КМС | F7: 57.9 | G7: 69.1 | I7: 46.2 | J7: 173.2
A8: 3 | B8: Веретенникова Елена | C8: =VLOOKUP($B$6:$B$48,'разряды ж.'!$A$5:$AB$202,2,FALSE) -> Минск | D8: =VLOOKUP($B$6:$B$48,'разряды ж.'!$A$5:$AB$202,3,FALSE) -> 1991 | E8: =VLOOKUP($B$6:$B$48,'разряды ж.'!$A$5:$AB$202,28,FALSE) -> КМС | F8: 45.2 | G8: 54.9 | I8: 35.7 | J8: 135.8
A9: 4 | B9: Андреева Елена | C9: =VLOOKUP($B$6:$B$48,'разряды ж.'!$A$5:$AB$202,2,FALSE) -> Гомельская обл. | D9: =VLOOKUP($B$6:$B$48,'разряды ж.'!$A$5:$AB$202,3,FALSE) -> 1982 | E9: =VLOOKUP($B$6:$B$48,'разряды ж.'!$A$5:$AB$202,28,FALSE) -> КМС | F9: 35.3 | G9: 41.6 | H9: 13.5 | I9: 18.2 | J9: 108.6
A10: 5 | B10: Лясович Наталья | C10: =VLOOKUP($B$6:$B$48,'разряды ж.'!$A$5:$AB$202,2,FALSE) -> Витебск | D10: =VLOOKUP($B$6:$B$48,'разряды ж.'!$A$5:$AB$202,3,FALSE) -> 1985 | E10: =VLOOKUP($B$6:$B$48,'разряды ж.'!$A$5:$AB$202,28,FALSE) -> 1 | F10: 22.6 | G10: 37.8 | H10: 18.5 | I10: 23.1 | J10: 102
A11: 6 | B11: Зюзина Елена | C11: =VLOOKUP($B$6:$B$48,'разряды ж.'!$A$5:$AB$202,2,FALSE) -> Хан-Тенгри | D11: =VLOOKUP($B$6:$B$48,'разряды ж.'!$A$5:$AB$202,3,FALSE) -> 1978 | E11: =VLOOKUP($B$6:$B$48,'разряды ж.'!$A$5:$AB$202,28,FALSE) -> 1 | F11: 41.6 | G11: 28.4 | I11: 28.7 | J11: 98.7
A12: 7 | B12: Федоркевич Светлана | C12: =VLOOKUP($B$6:$B$48,'разряды ж.'!$A$5:$AB$202,2,FALSE) -> ГОЦТиКДиМ | D12: =VLOOKUP($B$6:$B$48,'разряды ж.'!$A$5:$AB$202,3,FALSE) -> 1992 | E12: =VLOOKUP($B$6:$B$48,'разряды ж.'!$A$5:$AB$202,28,FALSE) -> КМС | F12: 48.8 | G12: 45.4 | J12: 94.2
A13: 8 | B13: Кузина Юлия | C13: =VLOOKUP($B$6:$B$48,'разряды ж.'!$A$5:$AB$202,2,FALSE) -> Бобруйск | D13: =VLOOKUP($B$6:$B$48,'разряды ж.'!$A$5:$AB$202,3,FALSE) -> 1999 | E13: =VLOOKUP($B$6:$B$48,'разряды ж.'!$A$5:$AB$202,28,FALSE) -> 1 | F13: 29.8 | G13: 31.2 | H13: 26 | J13: 87
A14: 9 | B14: Чемякина Валентина | C14: =VLOOKUP($B$6:$B$48,'разряды ж.'!$A$5:$AB$202,2,FALSE) -> Минск | D14: =VLOOKUP($B$6:$B$48,'разряды ж.'!$A$5:$AB$202,3,FALSE) -> 1996 | E14: =VLOOKUP($B$6:$B$48,'разряды ж.'!$A$5:$AB$202,28,FALSE) -> 1 | F14: 38 | G14: 34.1 | J14: 72.1
A15: 10 | B15: Самсонова Мария | C15: =VLOOKUP($B$6:$B$48,'разряды ж.'!$A$5:$AB$202,2,FALSE) -> С/к «Торпедо» Мг. | D15: =VLOOKUP($B$6:$B$48,'разряды ж.'!$A$5:$AB$202,3,FALSE) -> 1984 | E15: =VLOOKUP($B$6:$B$48,'разряды ж.'!$A$5:$AB$202,28,FALSE) -> КМС | F15: 71.4 | J15: 71.4
A16: 11 | B16: Верниковская Мария | C16: =VLOOKUP($B$6:$B$48,'разряды ж.'!$A$5:$AB$202,2,FALSE) -> Пуховичский р-н | D16: =VLOOKUP($B$6:$B$48,'разряды ж.'!$A$5:$AB$202,3,FALSE) -> 2000 | E16: =VLOOKUP($B$6:$B$48,'разряды ж.'!$A$5:$AB$202,28,FALSE) -> 2 | F16: 20.8 | G16: 14.2 | I16: 20.3 | J16: 55.3
A17: 12 | B17: Баева Диана | C17: =VLOOKUP($B$6:$B$48,'разряды ж.'!$A$5:$AB$202,2,FALSE) -> МогилёвскийОЦФВиС | D17: =VLOOKUP($B$6:$B$48,'разряды ж.'!$A$5:$AB$202,3,FALSE) -> 2000 | E17: =VLOOKUP($B$6:$B$48,'разряды ж.'!$A$5:$AB$202,28,FALSE) -> 2 | F17: 17.2 | G17: 18 | H17: 11.5 | J17: 46.7
A18: 13 | B18: Веретенникова Екатерина | C18: =VLOOKUP($B$6:$B$48,'разряды ж.'!$A$5:$AB$202,2,FALSE) -> Минск | D18: =VLOOKUP($B$6:$B$48,'разряды ж.'!$A$5:$AB$202,3,FALSE) -> 1989 | E18: =VLOOKUP($B$6:$B$48,'разряды ж.'!$A$5:$AB$202,28,FALSE) -> б/р | F18: 11.8 | G18: 8.5 | H18: 7.5 | I18: 14 | J18: 41.8
A19: 14 | B19: Чуйко Полина | C19: =VLOOKUP($B$6:$B$48,'разряды ж.'!$A$5:$AB$202,2,FALSE) -> Минск | D19: =VLOOKUP($B$6:$B$48,'разряды ж.'!$A$5:$AB$202,3,FALSE) -> 1990 | E19: =VLOOKUP($B$6:$B$48,'разряды ж.'!$A$5:$AB$202,28,FALSE) -> 1 | G19: 22.7 | I19: 16.1 | J19: 38.8
A20: 15 | B20: Кореневская Вероника | C20: =VLOOKUP($B$6:$B$48,'разряды ж.'!$A$5:$AB$202,2,FALSE) -> Минск | D20: =VLOOKUP($B$6:$B$48,'разряды ж.'!$A$5:$AB$202,3,FALSE) -> 1997 | E20: =VLOOKUP($B$6:$B$48,'разряды ж.'!$A$5:$AB$202,28,FALSE) -> 2 | F20: 32.5 | H20: 4.5 | J20: 37
A21: 16 | B21: Шуляк Марина | C21: =VLOOKUP($B$6:$B$48,'разряды ж.'!$A$5:$AB$202,2,FALSE) -> Хан-Тенгри | D21: =VLOOKUP($B$6:$B$48,'разряды ж.'!$A$5:$AB$202,3,FALSE) -> 1989 | E21: =VLOOKUP($B$6:$B$48,'разряды ж.'!$A$5:$AB$202,28,FALSE) -> б/р | F21: 27.1 | I21: 9.8 | J21: 36.9
A22: 17 | B22: Титкина Дарья | C22: =VLOOKUP($B$6:$B$48,'разряды ж.'!$A$5:$AB$202,2,FALSE) -> Хан-Тенгри | D22: =VLOOKUP($B$6:$B$48,'разряды ж.'!$A$5:$AB$202,3,FALSE) -> 1986 | E22: =VLOOKUP($B$6:$B$48,'разряды ж.'!$A$5:$AB$202,28,FALSE) -> 2 | H22: 6 | I22: 25.9 | J22: 31.9
A23: 18 | B23: Якубович Карина | C23: =VLOOKUP($B$6:$B$48,'разряды ж.'!$A$5:$AB$202,2,FALSE) -> ЦТиКДМ г. Пинска | D23: =VLOOKUP($B$6:$B$48,'разряды ж.'!$A$5:$AB$202,3,FALSE) -> 1998 | E23: =VLOOKUP($B$6:$B$48,'разряды ж.'!$A$5:$AB$202,28,FALSE) -> 2 | F23: 13.6 | G23: 14.2 | J23: 27.8
A24: 19 | B24: Семейко Галина | C24: =VLOOKUP($B$6:$B$48,'разряды ж.'!$A$5:$AB$202,2,FALSE) -> Минск | D24: =VLOOKUP($B$6:$B$48,'разряды ж.'!$A$5:$AB$202,3,FALSE) -> 1982 | E24: =VLOOKUP($B$6:$B$48,'разряды ж.'!$A$5:$AB$202,28,FALSE) -> 1 | G24: 25.5 | J24: 25.5
A25: 20 | B25: Полещук Татьяна | C25: =VLOOKUP($B$6:$B$48,'разряды ж.'!$A$5:$AB$202,2,FALSE) ->  | D25: =VLOOKUP($B$6:$B$48,'разряды ж.'!$A$5:$AB$202,3,FALSE) ->  | E25: =VLOOKUP($B$6:$B$48,'разряды ж.'!$A$5:$AB$202,28,FALSE) ->  | F25: 24.4 | J25: 24.4
A26: 21 | B26: Мисюкевич Александра | C26: =VLOOKUP($B$6:$B$48,'разряды ж.'!$A$5:$AB$202,2,FALSE) -> Минск | D26: =VLOOKUP($B$6:$B$48,'разряды ж.'!$A$5:$AB$202,3,FALSE) -> 1994 | E26: =VLOOKUP($B$6:$B$48,'разряды ж.'!$A$5:$AB$202,28,FALSE) -> 2 | G26: 14.2 | H26: 9.5 | J26: 23.7
A27: 22 | B27: Сивчик Вероника | C27: =VLOOKUP($B$6:$B$48,'разряды ж.'!$A$5:$AB$202,2,FALSE) ->  | D27: =VLOOKUP($B$6:$B$48,'разряды ж.'!$A$5:$AB$202,3,FALSE) ->  | E27: =VLOOKUP($B$6:$B$48,'разряды ж.'!$A$5:$AB$202,28,FALSE) ->  | F27: 9.9 | G27: 10.4 | J27: 20.3
A28: 23 | B28: Верхоглядова Елена | C28: =VLOOKUP($B$6:$B$48,'разряды ж.'!$A$5:$AB$202,2,FALSE) -> Хан-Тенгри | D28: =VLOOKUP($B$6:$B$48,'разряды ж.'!$A$5:$AB$202,3,FALSE) -> 1987 | E28: =VLOOKUP($B$6:$B$48,'разряды ж.'!$A$5:$AB$202,28,FALSE) -> 1 | G28: 19.9 | J28: 19.9
A29: 24 | B29: Никифоровец Екатерина | C29: =VLOOKUP($B$6:$B$48,'разряды ж.'!$A$5:$AB$202,2,FALSE) -> Минск | D29: =VLOOKUP($B$6:$B$48,'разряды ж.'!$A$5:$AB$202,3,FALSE) -> 1973 | E29: =VLOOKUP($B$6:$B$48,'разряды ж.'!$A$5:$AB$202,28,FALSE) -> б/р | F29: 19 | J29: 19
A30: 25 | B30: Вербанович Маргарита | C30: =VLOOKUP($B$6:$B$48,'разряды ж.'!$A$5:$AB$202,2,FALSE) -> Брестская область | D30: =VLOOKUP($B$6:$B$48,'разряды ж.'!$A$5:$AB$202,3,FALSE) -> 1999 | E30: =VLOOKUP($B$6:$B$48,'разряды ж.'!$A$5:$AB$202,28,FALSE) -> б/р | F30: 15.4 | J30: 15.4
A31: 26 | B31: Ракитская Анастасия | C31: =VLOOKUP($B$6:$B$48,'разряды ж.'!$A$5:$AB$202,2,FALSE) -> Хан-Тенгри | D31: =VLOOKUP($B$6:$B$48,'разряды ж.'!$A$5:$AB$202,3,FALSE) -> 1994 | E31: =VLOOKUP($B$6:$B$48,'разряды ж.'!$A$5:$AB$202,28,FALSE) -> б/р | F31: 4.1 | G31: 1.9 | I31: 7 | J31: 13
A32: 27 | B32: Разуменко Кристина | C32: =VLOOKUP($B$6:$B$48,'разряды ж.'!$A$5:$AB$202,2,FALSE) ->  | D32: =VLOOKUP($B$6:$B$48,'разряды ж.'!$A$5:$AB$202,3,FALSE) ->  | E32: =VLOOKUP($B$6:$B$48,'разряды ж.'!$A$5:$AB$202,28,FALSE) ->  | F32: 6.3 | G32: 6.6 | J32: 12.9
A33: 28 | B33: Кечик Юлия | C33: =VLOOKUP($B$6:$B$48,'разряды ж.'!$A$5:$AB$202,2,FALSE) -> Хан-Тенгри | D33: =VLOOKUP($B$6:$B$48,'разряды ж.'!$A$5:$AB$202,3,FALSE) -> 1987 | E33: =VLOOKUP($B$6:$B$48,'разряды ж.'!$A$5:$AB$202,28,FALSE) -> б/р | I33: 11.9 | J33: 11.9
A34: 29 | B34: Копусова Ксения | C34: =VLOOKUP($B$6:$B$48,'разряды ж.'!$A$5:$AB$202,2,FALSE) -> Минск | D34: =VLOOKUP($B$6:$B$48,'разряды ж.'!$A$5:$AB$202,3,FALSE) -> 2001 | E34: =VLOOKUP($B$6:$B$48,'разряды ж.'!$A$5:$AB$202,28,FALSE) -> 2 | I34: 8.4 | J34: 8.4
A35: 30 | B35: Кузичева Таисия | C35: =VLOOKUP($B$6:$B$48,'разряды ж.'!$A$5:$AB$202,2,FALSE) -> ГОЦТиКДиМ | D35: =VLOOKUP($B$6:$B$48,'разряды ж.'!$A$5:$AB$202,3,FALSE) -> 2000 | E35: =VLOOKUP($B$6:$B$48,'разряды ж.'!$A$5:$AB$202,28,FALSE) -> 2 | F35: 5.4 | G35: 2.8 | J35: 8.2
A36: 31 | B36: Воронина Татьяна | C36: =VLOOKUP($B$6:$B$48,'разряды ж.'!$A$5:$AB$202,2,FALSE) ->  | D36: =VLOOKUP($B$6:$B$48,'разряды ж.'!$A$5:$AB$202,3,FALSE) ->  | E36: =VLOOKUP($B$6:$B$48,'разряды ж.'!$A$5:$AB$202,28,FALSE) ->  | F36: 8.1 | J36: 8.1
A37: 32 | B37: Тарабуева Наталья | C37: =VLOOKUP($B$6:$B$48,'разряды ж.'!$A$5:$AB$202,2,FALSE) ->  | D37: =VLOOKUP($B$6:$B$48,'разряды ж.'!$A$5:$AB$202,3,FALSE) ->  | E37: =VLOOKUP($B$6:$B$48,'разряды ж.'!$A$5:$AB$202,28,FALSE) ->  | F37: 7.2 | J37: 7.2
A38: 33 | B38: Русинович Светлана | C38: =VLOOKUP($B$6:$B$48,'разряды ж.'!$A$5:$AB$202,2,FALSE) -> ГОЦТиКДиМ | D38: =VLOOKUP($B$6:$B$48,'разряды ж.'!$A$5:$AB$202,3,FALSE) -> 1991 | E38: =VLOOKUP($B$6:$B$48,'разряды ж.'!$A$5:$AB$202,28,FALSE) -> б/р | I38: 5.6 | J38: 5.6
A39: 34 | B39: Климович Янина | C39: =VLOOKUP($B$6:$B$48,'разряды ж.'!$A$5:$AB$202,2,FALSE) ->  | D39: =VLOOKUP($B$6:$B$48,'разряды ж.'!$A$5:$AB$202,3,FALSE) ->  | E39: =VLOOKUP($B$6:$B$48,'разряды ж.'!$A$5:$AB$202,28,FALSE) ->  | G39: 4.7 | J39: 4.7
A40: 35 | B40: Гацулина Анастасия | C40: =VLOOKUP($B$6:$B$48,'разряды ж.'!$A$5:$AB$202,2,FALSE) -> ГОЦТиКДиМ | D40: =VLOOKUP($B$6:$B$48,'разряды ж.'!$A$5:$AB$202,3,FALSE) -> 1997 | E40: =VLOOKUP($B$6:$B$48,'разряды ж.'!$A$5:$AB$202,28,FALSE) -> б/р | I40: 4.2 | J40: 4.2
A41: 36 | B41: Грищенко Екатерина | C41: =VLOOKUP($B$6:$B$48,'разряды ж.'!$A$5:$AB$202,2,FALSE) ->  | D41: =VLOOKUP($B$6:$B$48,'разряды ж.'!$A$5:$AB$202,3,FALSE) ->  | E41: =VLOOKUP($B$6:$B$48,'разряды ж.'!$A$5:$AB$202,28,FALSE) ->  | F41: 4.1 | J41: 4.1
A42: 37 | B42: Вежновец Екатерина | C42: =VLOOKUP($B$6:$B$48,'разряды ж.'!$A$5:$AB$202,2,FALSE) -> Минск | D42: =VLOOKUP($B$6:$B$48,'разряды ж.'!$A$5:$AB$202,3,FALSE) -> 0 | E42: =VLOOKUP($B$6:$B$48,'разряды ж.'!$A$5:$AB$202,28,FALSE) -> 3 | H42: 3 | J42: 3
A43: 38 | B43: Причинич Евгения | C43: =VLOOKUP($B$6:$B$48,'разряды ж.'!$A$5:$AB$202,2,FALSE) -> ГОЦТиКДиМ | D43: =VLOOKUP($B$6:$B$48,'разряды ж.'!$A$5:$AB$202,3,FALSE) -> 1990 | E43: =VLOOKUP($B$6:$B$48,'разряды ж.'!$A$5:$AB$202,28,FALSE) -> б/р | I43: 2.8 | J43: 2.8
A44: 39 | B44: Савицкая Екатерина | C44: =VLOOKUP($B$6:$B$48,'разряды ж.'!$A$5:$AB$202,2,FALSE) ->  | D44: =VLOOKUP($B$6:$B$48,'разряды ж.'!$A$5:$AB$202,3,FALSE) ->  | E44: =VLOOKUP($B$6:$B$48,'разряды ж.'!$A$5:$AB$202,28,FALSE) ->  | F44: 2.7 | J44: 2.7
A45: 40 | B45: Шпунтова Анна | C45: =VLOOKUP($B$6:$B$48,'разряды ж.'!$A$5:$AB$202,2,FALSE) ->  | D45: =VLOOKUP($B$6:$B$48,'разряды ж.'!$A$5:$AB$202,3,FALSE) ->  | E45: =VLOOKUP($B$6:$B$48,'разряды ж.'!$A$5:$AB$202,28,FALSE) ->  | F45: 1.4 | G45: 0.9 | J45: 2.3
A46: 41 | B46: Комарчук Елена | C46: =VLOOKUP($B$6:$B$48,'разряды ж.'!$A$5:$AB$202,2,FALSE) ->  | D46: =VLOOKUP($B$6:$B$48,'разряды ж.'!$A$5:$AB$202,3,FALSE) ->  | E46: =VLOOKUP($B$6:$B$48,'разряды ж.'!$A$5:$AB$202,28,FALSE) ->  | H46: 1.5 | J46: 1.5
A47: 42 | B47: Самохвалова Анастасия | C47: =VLOOKUP($B$6:$B$48,'разряды ж.'!$A$5:$AB$202,2,FALSE) -> Гомельская обл. | D47: =VLOOKUP($B$6:$B$48,'разряды ж.'!$A$5:$AB$202,3,FALSE) -> 1997 | E47: =VLOOKUP($B$6:$B$48,'разряды ж.'!$A$5:$AB$202,28,FALSE) -> б/р | I47: 1.4 | J47: 1.4
A48: 43 | B48: Клещёнок Светлана | C48: =VLOOKUP($B$6:$B$48,'разряды ж.'!$A$5:$AB$202,2,FALSE) ->  | D48: =VLOOKUP($B$6:$B$48,'разряды ж.'!$A$5:$AB$202,3,FALSE) ->  | E48: =VLOOKUP($B$6:$B$48,'разряды ж.'!$A$5:$AB$202,28,FALSE) ->  | F48: 1.4 | J48: 1.4

Sheet мужчины ск.
A1: Текущий рейтинг. Скорость. Мужчины.
B2: на 1.05.2015 года | F2: ЧРБ-2013 | G2: КБ-2014 | H2: ЧРБ-2015 | I2: общий рез-т
A3: Место | B3: Фамилия Имя | C3: Команда | D3: г.р. | E3: Подтвержденный разряд | F3: Витебск | G3: Витебск | H3: Витебск
F4: 5-8.12. | G4: 10-13.04. | H4: 17-20.04.15
A5: 1 | B5: Караваев Дмитрий | C5: =VLOOKUP(B5:B28,'разряды м.'!$A$5:$AB$205,2,FALSE) -> Гомельская обл. | D5: =VLOOKUP(B5:B66,'разряды м.'!$A$5:$AB$205,3,FALSE) -> 1993 | E5: =VLOOKUP(B:B,'разряды м.'!$A$5:$AB$205,28,FALSE) -> КМС | F5: 49.1 | G5: 51.2 | H5: 71.31782391 | I5: =SUM(F5:H5) -> 171.6178239
A6: 2 | B6: Клюжев Александр | C6: =VLOOKUP(B6:B29,'разряды м.'!$A$5:$AB$205,2,FALSE) -> Гомельская обл. | D6: =VLOOKUP(B6:B67,'разряды м.'!$A$5:$AB$205,3,FALSE) -> 1997 | E6: =VLOOKUP(B:B,'разряды м.'!$A$5:$AB$205,28,FALSE) -> МС | F6: 40.6 | G6: 37.7 | H6: 42.29312813 | I6: 120.5931281
A7: 3 | B7: Дюбенков Дмитрий | C7: =VLOOKUP(B7:B30,'разряды м.'!$A$5:$AB$205,2,FALSE) -> Гомельская обл. | D7: =VLOOKUP(B7:B68,'разряды м.'!$A$5:$AB$205,3,FALSE) -> 1992 | E7: =VLOOKUP(B:B,'разряды м.'!$A$5:$AB$205,28,FALSE) -> КМС | F7: 78.7 | G7: 27.6 | H7: 2.487831067 | I7: 108.7878311
A8: 4 | B8: Вальковский Владимир | C8: =VLOOKUP(B8:B31,'разряды м.'!$A$5:$AB$205,2,FALSE) -> ГОЦТиКДиМ Гомель | D8: =VLOOKUP(B8:B69,'разряды м.'!$A$5:$AB$205,3,FALSE) -> 1992 | E8: =VLOOKUP(B:B,'разряды м.'!$A$5:$AB$205,28,FALSE) -> КМС | G8: 20.9 | H8: 54.73228346 | I8: 75.63228346
A9: 5 | B9: Логунов Никита | C9: =VLOOKUP(B9:B32,'разряды м.'!$A$5:$AB$205,2,FALSE) -> ДЮСШ «Омега» Гом. | D9: =VLOOKUP(B9:B70,'разряды м.'!$A$5:$AB$205,3,FALSE) -> 1999 | E9: =VLOOKUP(B:B,'разряды м.'!$A$5:$AB$205,28,FALSE) -> КМС | F9: 33.9 | H9: 34.00035791 | I9: 67.90035791
A10: 6 | B10: Денисевич Евгений | C10: =VLOOKUP(B10:B33,'разряды м.'!$A$5:$AB$205,2,FALSE) -> Брестская область | D10: =VLOOKUP(B10:B71,'разряды м.'!$A$5:$AB$205,3,FALSE) -> 1994 | E10: =VLOOKUP(B:B,'разряды м.'!$A$5:$AB$205,28,FALSE) -> КМС | F10: 61.8 | I10: 61.8
A11: 7 | B11: Никифоровец Андрей | C11: =VLOOKUP(B11:B34,'разряды м.'!$A$5:$AB$205,2,FALSE) -> Минск | D11: =VLOOKUP(B11:B72,'разряды м.'!$A$5:$AB$205,3,FALSE) -> 1974 | E11: =VLOOKUP(B:B,'разряды м.'!$A$5:$AB$205,28,FALSE) -> МС | F11: 37.3 | G11: 15.5 | H11: 4.975662133 | I11: 57.77566213
A12: 8 | B12: Сердаков Илья | C12: =VLOOKUP(B12:B35,'разряды м.'!$A$5:$AB$205,2,FALSE) -> ГОЦТиКДиМ Гомель | D12: =VLOOKUP(B12:B73,'разряды м.'!$A$5:$AB$205,3,FALSE) -> 1999 | E12: =VLOOKUP(B:B,'разряды м.'!$A$5:$AB$205,28,FALSE) -> КМС | F12: 16.1 | G12: 10.8 | H12: 30.68324982 | I12: 57.58324982
A13: 9 | B13: Буйленков Павел | C13: =VLOOKUP(B13:B36,'разряды м.'!$A$5:$AB$205,2,FALSE) -> Гомельская обл. | D13: =VLOOKUP(B13:B74,'разряды м.'!$A$5:$AB$205,3,FALSE) -> 1993 | E13: =VLOOKUP(B:B,'разряды м.'!$A$5:$AB$205,28,FALSE) -> КМС | F13: 14.4 | G13: 18.2 | H13: 2.487831067 | I13: 35.08783107
A14: 10 | B14: Аблажевич Виктор | C14: =VLOOKUP(B14:B37,'разряды м.'!$A$5:$AB$205,2,FALSE) -> Гомельская обл. | D14: =VLOOKUP(B14:B75,'разряды м.'!$A$5:$AB$205,3,FALSE) -> 2000 | E14: =VLOOKUP(B:B,'разряды м.'!$A$5:$AB$205,28,FALSE) -> 2 | F14: 2.5 | G14: 4.7 | H14: 27.36614173 | I14: 34.56614173
A15: 11 | B15: Покаместов Илья | C15: =VLOOKUP(B15:B38,'разряды м.'!$A$5:$AB$205,2,FALSE) -> Витебск | D15: =VLOOKUP(B15:B76,'разряды м.'!$A$5:$AB$205,3,FALSE) -> 1977 | E15: =VLOOKUP(B:B,'разряды м.'!$A$5:$AB$205,28,FALSE) -> 1 | F15: 22.9 | G15: 8.8 | I15: 31.7
A16: 12 | B16: Пуйто Антон | C16: =VLOOKUP(B16:B39,'разряды м.'!$A$5:$AB$205,2,FALSE) -> ГОЦТиКДиМ Гомель | D16: =VLOOKUP(B16:B77,'разряды м.'!$A$5:$AB$205,3,FALSE) -> 1998 | E16: =VLOOKUP(B:B,'разряды м.'!$A$5:$AB$205,28,FALSE) -> 1 | F16: 17.8 | G16: 12.8 | I16: 30.6
A17: 13 | B17: Волосович Дмитрий | C17: =VLOOKUP(B17:B40,'разряды м.'!$A$5:$AB$205,2,FALSE) -> Гомельская обл. | D17: =VLOOKUP(B17:B78,'разряды м.'!$A$5:$AB$205,3,FALSE) -> 1995 | E17: =VLOOKUP(B:B,'разряды м.'!$A$5:$AB$205,28,FALSE) -> КМС | F17: 30.5 | I17: 30.5
A18: 14 | B18: Пристромов Антон | C18: =VLOOKUP(B18:B41,'разряды м.'!$A$5:$AB$205,2,FALSE) -> ДЮСШ «Омега» Гом. | D18: =VLOOKUP(B18:B79,'разряды м.'!$A$5:$AB$205,3,FALSE) -> 1988 | E18: =VLOOKUP(B:B,'разряды м.'!$A$5:$AB$205,28,FALSE) -> КМС | F18: 27.9 | I18: 27.9
A19: 15 | B19: Никифоровец Максим | C19: =VLOOKUP(B19:B42,'разряды м.'!$A$5:$AB$205,2,FALSE) -> Минск | D19: =VLOOKUP(B19:B80,'разряды м.'!$A$5:$AB$205,3,FALSE) -> 1997 | E19: =VLOOKUP(B:B,'разряды м.'!$A$5:$AB$205,28,FALSE) -> КМС | F19: 25.4 | I19: 25.4
A20: 16 | B20: Лялюк Александр | C20: =VLOOKUP(B20:B43,'разряды м.'!$A$5:$AB$205,2,FALSE) -> г. Витебск | D20: =VLOOKUP(B20:B81,'разряды м.'!$A$5:$AB$205,3,FALSE) -> 1989 | E20: =VLOOKUP(B:B,'разряды м.'!$A$5:$AB$205,28,FALSE) -> 2 | H20: 24.04903364 | I20: 24.04903364
A21: 17 | B21: Талдыкин Илья | C21: =VLOOKUP(B21:B44,'разряды м.'!$A$5:$AB$205,2,FALSE) -> ДЮСШ «Омега» Гом. | D21: =VLOOKUP(B21:B82,'разряды м.'!$A$5:$AB$205,3,FALSE) -> 2000 | E21: =VLOOKUP(B:B,'разряды м.'!$A$5:$AB$205,28,FALSE) -> 2 | F21: 4.2 | H21: 19.07337151 | I21: 23.27337151
A22: 18 | B22: Мертенс Андрей | C22: =VLOOKUP(B22:B45,'разряды м.'!$A$5:$AB$205,2,FALSE) -> г. Витебск | D22: =VLOOKUP(B22:B83,'разряды м.'!$A$5:$AB$205,3,FALSE) -> 1992 | E22: =VLOOKUP(B:B,'разряды м.'!$A$5:$AB$205,28,FALSE) -> 3 | H22: 21.56120258 | I22: 21.56120258
A23: 19 | B23: Никоноров Дмитрий | C23: =VLOOKUP(B23:B46,'разряды м.'!$A$5:$AB$205,2,FALSE) -> Пуховичский р-н | D23: =VLOOKUP(B23:B84,'разряды м.'!$A$5:$AB$205,3,FALSE) -> 1997 | E23: =VLOOKUP(B:B,'разряды м.'!$A$5:$AB$205,28,FALSE) -> КМС | F23: 20.3 | I23: 20.3
A24: 20 | B24: Зюзин Иван | C24: =VLOOKUP(B24:B47,'разряды м.'!$A$5:$AB$205,2,FALSE) -> Минск | D24: =VLOOKUP(B24:B85,'разряды м.'!$A$5:$AB$205,3,FALSE) -> 2001 | E24: =VLOOKUP(B:B,'разряды м.'!$A$5:$AB$205,28,FALSE) -> 1 | H24: 16.58554044 | I24: 16.58554044
A25: 21 | B25: Давыдов Денис | C25: =VLOOKUP(B25:B48,'разряды м.'!$A$5:$AB$205,2,FALSE) -> Минск | D25: =VLOOKUP(B25:B86,'разряды м.'!$A$5:$AB$205,3,FALSE) -> 2000 | E25: =VLOOKUP(B:B,'разряды м.'!$A$5:$AB$205,28,FALSE) -> 1 | F25: 9.3 | G25: 6.7 | I25: 16
A26: 22 | B26: Степаненко Олег | C26: =VLOOKUP(B26:B49,'разряды м.'!$A$5:$AB$205,2,FALSE) -> Гомельская обл. | D26: =VLOOKUP(B26:B87,'разряды м.'!$A$5:$AB$205,3,FALSE) -> 2001 | E26: =VLOOKUP(B:B,'разряды м.'!$A$5:$AB$205,28,FALSE) -> 1 юн | H26: 14.09770938 | I26: 14.09770938
A27: 23 | B27: Силивончик Виктор | C27: =VLOOKUP(B27:B50,'разряды м.'!$A$5:$AB$205,2,FALSE) ->  | D27: =VLOOKUP(B27:B88,'разряды м.'!$A$5:$AB$205,3,FALSE) ->  | E27: =VLOOKUP(B:B,'разряды м.'!$A$5:$AB$205,28,FALSE) ->  | F27: 12.7 | I27: 12.7
A28: 24 | B28: Капитонов Илья | C28: =VLOOKUP(B28:B51,'разряды м.'!$A$5:$AB$205,2,FALSE) ->  | D28: =VLOOKUP(B28:B89,'разряды м.'!$A$5:$AB$205,3,FALSE) ->  | E28: =VLOOKUP(B:B,'разряды м.'!$A$5:$AB$205,28,FALSE) ->  | H28: 11.60987831 | I28: 11.60987831
A29: 25 | B29: Живица Арсений | C29: =VLOOKUP(B29:B52,'разряды м.'!$A$5:$AB$205,2,FALSE) -> Минск | D29: =VLOOKUP(B29:B90,'разряды м.'!$A$5:$AB$205,3,FALSE) -> 2000 | E29: =VLOOKUP(B:B,'разряды м.'!$A$5:$AB$205,28,FALSE) -> 1 | F29: 11 | I29: 11
A30: 26 | B30: Бережной Максим | C30: =VLOOKUP(B30:B53,'разряды м.'!$A$5:$AB$205,2,FALSE) -> РЦЭК | D30: =VLOOKUP(B30:B91,'разряды м.'!$A$5:$AB$205,3,FALSE) -> 2000 | E30: =VLOOKUP(B:B,'разряды м.'!$A$5:$AB$205,28,FALSE) -> 3 | H30: 9.951324266 | I30: 9.951324266
A31: 27 | B31: Писарев Кирилл | C31: =VLOOKUP(B31:B54,'разряды м.'!$A$5:$AB$205,2,FALSE) -> ДЮСШ «Омега» Гом. | D31: =VLOOKUP(B31:B92,'разряды м.'!$A$5:$AB$205,3,FALSE) -> 2001 | E31: =VLOOKUP(B:B,'разряды м.'!$A$5:$AB$205,28,FALSE) -> 1 | H31: 8.292770222 | I31: 8.292770222
A32: 28 | B32: Главацкий Сергей | C32: =VLOOKUP(B32:B55,'разряды м.'!$A$5:$AB$205,2,FALSE) -> Пуховичский р-н | D32: =VLOOKUP(B32:B93,'разряды м.'!$A$5:$AB$205,3,FALSE) -> 1998 | E32: =VLOOKUP(B:B,'разряды м.'!$A$5:$AB$205,28,FALSE) -> 1 | F32: 7.6 | I32: 7.6
A33: 29 | B33: Самухин Василий | C33: =VLOOKUP(B33:B56,'разряды м.'!$A$5:$AB$205,2,FALSE) -> Минск | D33: =VLOOKUP(B33:B94,'разряды м.'!$A$5:$AB$205,3,FALSE) -> 2000 | E33: =VLOOKUP(B:B,'разряды м.'!$A$5:$AB$205,28,FALSE) -> 3 | H33: 6.634216178 | I33: 6.634216178
A34: 30 | B34: Ахламенок Олег | C34: =VLOOKUP(B34:B57,'разряды м.'!$A$5:$AB$205,2,FALSE) ->  | D34: =VLOOKUP(B34:B95,'разряды м.'!$A$5:$AB$205,3,FALSE) ->  | E34: =VLOOKUP(B:B,'разряды м.'!$A$5:$AB$205,28,FALSE) ->  | F34: 5.9 | I34: 5.9
A35: 31 | B35: Огарко Михаил | C35: =VLOOKUP(B35:B58,'разряды м.'!$A$5:$AB$205,2,FALSE) ->  | D35: =VLOOKUP(B35:B96,'разряды м.'!$A$5:$AB$205,3,FALSE) ->  | E35: =VLOOKUP(B:B,'разряды м.'!$A$5:$AB$205,28,FALSE) ->  | F35: 0.8 | G35: 1.3 | I35: 2.1
A36: 32 | B36: Стрельский Максим | C36: =VLOOKUP(B36:B59,'разряды м.'!$A$5:$AB$205,2,FALSE) -> Пуховичский р-н | D36: =VLOOKUP(B36:B97,'разряды м.'!$A$5:$AB$205,3,FALSE) -> 1998 | E36: =VLOOKUP(B:B,'разряды м.'!$A$5:$AB$205,28,FALSE) -> б/р | F36: 1.7 | I36: 1.7

Sheet женщины ск.
A1: Текущий рейтинг. Скорость. Женщины.
B3: на 1.05.2015 года | F3: ЧРБ-2013 | G3: КБ-2014 | H3: ЧРБ-2015 | I3: общий рез-т
A4: Место | B4: Фамилия Имя | C4: Команда | D4: г.р. | E4: Подтвержденный разряд | F4: Витебск | G4: Витебск | H4: Витебск
F5: 5-8.12. | G5: 10-13.04. | H5: 17-20.04.15
A6: 1 | B6: Федоркевич Светлана | C6: =VLOOKUP(B6:B16,'разряды ж.'!$A$5:$AB$202,2,FALSE) -> ГОЦТиКДиМ | D6: =VLOOKUP(B6:B16,'разряды ж.'!$A$5:$AB$202,3,FALSE) -> 1992 | E6: =VLOOKUP(B6:B34,'разряды ж.'!$A$5:$AB$202,28,FALSE) -> КМС | F6: 21.4 | G6: 23.4 | I6: =SUM(F6:H6) -> 44.8
A7: 2 | B7: Кореневская Вероника | C7: =VLOOKUP(B7:B17,'разряды ж.'!$A$5:$AB$202,2,FALSE) -> Минск | D7: =VLOOKUP(B7:B17,'разряды ж.'!$A$5:$AB$202,3,FALSE) -> 1997 | E7: =VLOOKUP(B7:B35,'разряды ж.'!$A$5:$AB$202,28,FALSE) -> 2 | F7: 5.5 | G7: 14.6 | H7: 13.43434343 | I7: 33.53434343
A8: 3 | B8: Ермохина Дарья | C8: =VLOOKUP(B8:B18,'разряды ж.'!$A$5:$AB$202,2,FALSE) -> РЦЭК | D8: =VLOOKUP(B8:B18,'разряды ж.'!$A$5:$AB$202,3,FALSE) -> 1999 | E8: =VLOOKUP(B8:B36,'разряды ж.'!$A$5:$AB$202,28,FALSE) -> 1 юн | G8: 7.9 | H8: 8.720538721 | I8: 16.62053872
A9: 4 | B9: Кузина Юлия | C9: =VLOOKUP(B9:B19,'разряды ж.'!$A$5:$AB$202,2,FALSE) -> Бобруйск | D9: =VLOOKUP(B9:B19,'разряды ж.'!$A$5:$AB$202,3,FALSE) -> 1999 | E9: =VLOOKUP(B9:B37,'разряды ж.'!$A$5:$AB$202,28,FALSE) -> 1 | F9: 14.9 | I9: 14.9
A10: 5 | B10: Якубович Карина | C10: =VLOOKUP(B10:B20,'разряды ж.'!$A$5:$AB$202,2,FALSE) -> ЦТиКДМ г. Пинска | D10: =VLOOKUP(B10:B20,'разряды ж.'!$A$5:$AB$202,3,FALSE) -> 1998 | E10: =VLOOKUP(B10:B38,'разряды ж.'!$A$5:$AB$202,28,FALSE) -> 2 | F10: 10 | I10: 10
A11: 6 | B11: Болсун Софья | C11: =VLOOKUP(B11:B21,'разряды ж.'!$A$5:$AB$202,2,FALSE) -> ДЮСШ "Омега" | D11: =VLOOKUP(B11:B21,'разряды ж.'!$A$5:$AB$202,3,FALSE) -> 1998 | E11: =VLOOKUP(B11:B39,'разряды ж.'!$A$5:$AB$202,28,FALSE) -> б/р | F11: 4.2 | G11: 3.5 | I11: 7.7
A12: 7 | B12: Разуменко Кристина | C12: =VLOOKUP(B12:B22,'разряды ж.'!$A$5:$AB$202,2,FALSE) ->  | D12: =VLOOKUP(B12:B22,'разряды ж.'!$A$5:$AB$202,3,FALSE) ->  | E12: =VLOOKUP(B12:B40,'разряды ж.'!$A$5:$AB$202,28,FALSE) ->  | F12: 6.8 | I12: 6.8
A13: 8 | B13: Копусова Ксения | C13: =VLOOKUP(B13:B23,'разряды ж.'!$A$5:$AB$202,2,FALSE) -> Минск | D13: =VLOOKUP(B13:B23,'разряды ж.'!$A$5:$AB$202,3,FALSE) -> 2001 | E13: =VLOOKUP(B13:B41,'разряды ж.'!$A$5:$AB$202,28,FALSE) -> 2 | H13: 5.185185185 | I13: 5.185185185
A14: 9 | B14: Кузичева Таисия | C14: =VLOOKUP(B14:B24,'разряды ж.'!$A$5:$AB$202,2,FALSE) -> ГОЦТиКДиМ | D14: =VLOOKUP(B14:B24,'разряды ж.'!$A$5:$AB$202,3,FALSE) -> 2000 | E14: =VLOOKUP(B14:B42,'разряды ж.'!$A$5:$AB$202,28,FALSE) -> 2 | F14: 2.9 | I14: 2.9
A15: 10 | B15: Гацулина Анастасия | C15: =VLOOKUP(B15:B25,'разряды ж.'!$A$5:$AB$202,2,FALSE) -> ГОЦТиКДиМ | D15: =VLOOKUP(B15:B25,'разряды ж.'!$A$5:$AB$202,3,FALSE) -> 1997 | E15: =VLOOKUP(B15:B43,'разряды ж.'!$A$5:$AB$202,28,FALSE) -> б/р | H15: 2.828282828 | I15: 2.828282828
A16: 11 | B16: Тарасенко Анна | C16: =VLOOKUP(B16:B26,'разряды ж.'!$A$5:$AB$202,2,FALSE) ->  | D16: =VLOOKUP(B16:B26,'разряды ж.'!$A$5:$AB$202,3,FALSE) ->  | E16: =VLOOKUP(B16:B44,'разряды ж.'!$A$5:$AB$202,28,FALSE) ->  | F16: 1.9 | I16: 1.9
A17: 12 | B17: Русинович Светлана | C17: =VLOOKUP(B17:B27,'разряды ж.'!$A$5:$AB$202,2,FALSE) -> ГОЦТиКДиМ | D17: =VLOOKUP(B17:B27,'разряды ж.'!$A$5:$AB$202,3,FALSE) -> 1991 | E17: =VLOOKUP(B17:B45,'разряды ж.'!$A$5:$AB$202,28,FALSE) -> б/р | H17: 1.885521886 | I17: 1.885521886
A18: 13 | B18: Белковец Екатерина | C18: =VLOOKUP(B18:B28,'разряды ж.'!$A$5:$AB$202,2,FALSE) ->  | D18: =VLOOKUP(B18:B28,'разряды ж.'!$A$5:$AB$202,3,FALSE) ->  | E18: =VLOOKUP(B18:B46,'разряды ж.'!$A$5:$AB$202,28,FALSE) ->  | G18: 1.8 | I18: 1.8
A19: 14 | B19: Баталко Мария | C19: =VLOOKUP(B19:B29,'разряды ж.'!$A$5:$AB$202,2,FALSE) ->  | D19: =VLOOKUP(B19:B29,'разряды ж.'!$A$5:$AB$202,3,FALSE) ->  | E19: =VLOOKUP(B19:B47,'разряды ж.'!$A$5:$AB$202,28,FALSE) ->  | F19: 1 | I19: 1
A20: 15 | B20: Коноплева Марина | C20: =VLOOKUP(B20:B30,'разряды ж.'!$A$5:$AB$202,2,FALSE) -> Гомельская обл. | D20: =VLOOKUP(B20:B30,'разряды ж.'!$A$5:$AB$202,3,FALSE) -> 2001 | E20: =VLOOKUP(B20:B48,'разряды ж.'!$A$5:$AB$202,28,FALSE) -> 2 | H20: 0.9427609428 | I20: 0.9427609428

Sheet мужчины тр.
A1: Текущий рейтинг
A2: Мужчины, трудность
A3: на 1.05.2015 года | F3: ЧРБ-2013 | G3: КБ-2014 | H3: ЧРБ-2015 | I3: общий рез-т
A4: М | B4: Фамилия, Имя | C4: Команда | D4: г.р. | E4: Подтвержденный разряд | F4: Витебск | G4: Витебск | H4: Витебск
F5: 5-8.12.13 | G5: 10-13.04. | H5: 17-20.04.15
A6: 1 | B6: Никифоровец Андрей | C6: =VLOOKUP(B6:B42,'разряды м.'!$A$5:$AB$205,2,FALSE) -> Минск | D6: =VLOOKUP(B6:B42,'разряды м.'!$A$5:$AB$205,3,FALSE) -> 1974 | E6: =VLOOKUP(B:B,'разряды м.'!$A$5:$AB$205,28,FALSE) -> МС | F6: 95.34401076 | G6: 63.9 | H6: 66.96576928 | I6: =SUM(F6:H6) -> 226.20978
A7: 2 | B7: Клюжев Александр | C7: =VLOOKUP(B7:B43,'разряды м.'!$A$5:$AB$205,2,FALSE) -> Гомельская обл. | D7: =VLOOKUP(B7:B43,'разряды м.'!$A$5:$AB$205,3,FALSE) -> 1997 | E7: =VLOOKUP(B:B,'разряды м.'!$A$5:$AB$205,28,FALSE) -> МС | F7: 76.27520861 | G7: 44.4 | H7: 86.09884622 | I7: 206.7740548
A8: 3 | B8: Логунов Никита | C8: =VLOOKUP(B8:B44,'разряды м.'!$A$5:$AB$205,2,FALSE) -> ДЮСШ «Омега» Гом. | D8: =VLOOKUP(B8:B44,'разряды м.'!$A$5:$AB$205,3,FALSE) -> 1999 | E8: =VLOOKUP(B:B,'разряды м.'!$A$5:$AB$205,28,FALSE) -> КМС | F8: 61.973607 | G8: 44.4 | H8: 52.61596158 | I8: 158.9895686
A9: 4 | B9: Яцыно Павел | C9: =VLOOKUP(B9:B45,'разряды м.'!$A$5:$AB$205,2,FALSE) -> Витебск | D9: =VLOOKUP(B9:B45,'разряды м.'!$A$5:$AB$205,3,FALSE) -> 1986 | E9: =VLOOKUP(B:B,'разряды м.'!$A$5:$AB$205,28,FALSE) -> КМС | F9: 41.28395666 | G9: 32 | H9: 43.04942311 | I9: 116.3333798
A10: 5 | B10: Изидеров Никита | C10: =VLOOKUP(B10:B46,'разряды м.'!$A$5:$AB$205,2,FALSE) -> Полоцк | D10: =VLOOKUP(B10:B46,'разряды м.'!$A$5:$AB$205,3,FALSE) -> 1994 | E10: =VLOOKUP(B:B,'разряды м.'!$A$5:$AB$205,28,FALSE) -> КМС | F10: 52.43920592 | H10: 33.48288464 | I10: 85.92209056
A11: 6 | B11: Дюбенков Дмитрий | C11: =VLOOKUP(B11:B47,'разряды м.'!$A$5:$AB$205,2,FALSE) -> Гомельская обл. | D11: =VLOOKUP(B11:B47,'разряды м.'!$A$5:$AB$205,3,FALSE) -> 1992 | E11: =VLOOKUP(B:B,'разряды м.'!$A$5:$AB$205,28,FALSE) -> КМС | F11: 25.74288291 | G11: 17.1 | H11: 39.22280772 | I11: 82.06569063
A12: 7 | B12: Караваев Дмитрий | C12: =VLOOKUP(B12:B48,'разряды м.'!$A$5:$AB$205,2,FALSE) -> Гомельская обл. | D12: =VLOOKUP(B12:B48,'разряды м.'!$A$5:$AB$205,3,FALSE) -> 1993 | E12: =VLOOKUP(B:B,'разряды м.'!$A$5:$AB$205,28,FALSE) -> КМС | F12: 29.55664334 | G12: 9.2 | H12: 33.48288464 | I12: 72.23952798
A13: 8 | B13: Сердаков Илья | C13: =VLOOKUP(B13:B49,'разряды м.'!$A$5:$AB$205,2,FALSE) -> ГОЦТиКДиМ Гомель | D13: =VLOOKUP(B13:B49,'разряды м.'!$A$5:$AB$205,3,FALSE) -> 1999 | E13: =VLOOKUP(B:B,'разряды м.'!$A$5:$AB$205,28,FALSE) -> КМС | F13: 13.34816151 | G13: 23.4 | H13: 25.82965387 | I13: 62.57781537
A14: 9 | B14: Буйленков Павел | C14: =VLOOKUP(B14:B50,'разряды м.'!$A$5:$AB$205,2,FALSE) -> Гомельская обл. | D14: =VLOOKUP(B14:B50,'разряды м.'!$A$5:$AB$205,3,FALSE) -> 1993 | E14: =VLOOKUP(B:B,'разряды м.'!$A$5:$AB$205,28,FALSE) -> КМС | F14: 7.627520861 | G14: 29.1 | H14: 13.39315386 | I14: 50.12067472
A15: 10 | B15: Волосович Дмитрий | C15: =VLOOKUP(B15:B51,'разряды м.'!$A$5:$AB$205,2,FALSE) -> Гомельская обл. | D15: =VLOOKUP(B15:B51,'разряды м.'!$A$5:$AB$205,3,FALSE) -> 1995 | E15: =VLOOKUP(B:B,'разряды м.'!$A$5:$AB$205,28,FALSE) -> КМС | F15: 48.62544549 | I15: 48.62544549
A16: 11 | B16: Пристромов Антон | C16: =VLOOKUP(B16:B52,'разряды м.'!$A$5:$AB$205,2,FALSE) -> ДЮСШ «Омега» Гом. | D16: =VLOOKUP(B16:B52,'разряды м.'!$A$5:$AB$205,3,FALSE) -> 1988 | E16: =VLOOKUP(B:B,'разряды м.'!$A$5:$AB$205,28,FALSE) -> КМС | F16: 41.28395666 | I16: 41.28395666
A17: 12 | B17: Голубев Денис | C17: =VLOOKUP(B17:B53,'разряды м.'!$A$5:$AB$205,2,FALSE) -> Витебск | D17: =VLOOKUP(B17:B53,'разряды м.'!$A$5:$AB$205,3,FALSE) -> 1994 | E17: =VLOOKUP(B:B,'разряды м.'!$A$5:$AB$205,28,FALSE) -> КМС | F17: 41.28395666 | I17: 41.28395666
A18: 13 | B18: Аблажевич Виктор | C18: =VLOOKUP(B18:B54,'разряды м.'!$A$5:$AB$205,2,FALSE) -> Гомельская обл. | D18: =VLOOKUP(B18:B54,'разряды м.'!$A$5:$AB$205,3,FALSE) -> 2000 | E18: =VLOOKUP(B:B,'разряды м.'!$A$5:$AB$205,28,FALSE) -> 2 | F18: 6.674080753 | G18: 4.3 | H18: 22.95969232 | I18: 33.93377308
A19: 14 | B19: Малаховский Александр | C19: =VLOOKUP(B19:B55,'разряды м.'!$A$5:$AB$205,2,FALSE) -> Хан-Тенгри | D19: =VLOOKUP(B19:B55,'разряды м.'!$A$5:$AB$205,3,FALSE) -> 1985 | E19: =VLOOKUP(B:B,'разряды м.'!$A$5:$AB$205,28,FALSE) -> 1 | F19: 33.84712382 | I19: 33.84712382
A20: 15 | B20: Никоноров Дмитрий | C20: =VLOOKUP(B20:B56,'разряды м.'!$A$5:$AB$205,2,FALSE) -> Пуховичский р-н | D20: =VLOOKUP(B20:B56,'разряды м.'!$A$5:$AB$205,3,FALSE) -> 1997 | E20: =VLOOKUP(B:B,'разряды м.'!$A$5:$AB$205,28,FALSE) -> КМС | F20: 33.84712382 | I20: 33.84712382
A21: 16 | B21: Талдыкин Илья | C21: =VLOOKUP(B21:B57,'разряды м.'!$A$5:$AB$205,2,FALSE) -> ДЮСШ «Омега» Гом. | D21: =VLOOKUP(B21:B57,'разряды м.'!$A$5:$AB$205,3,FALSE) -> 2000 | E21: =VLOOKUP(B:B,'разряды м.'!$A$5:$AB$205,28,FALSE) -> 2 | F21: 1.906880215 | H21: 28.69961541 | I21: 30.60649562
A22: 17 | B22: Пуйто Антон | C22: =VLOOKUP(B22:B58,'разряды м.'!$A$5:$AB$205,2,FALSE) -> ГОЦТиКДиМ Гомель | D22: =VLOOKUP(B22:B58,'разряды м.'!$A$5:$AB$205,3,FALSE) -> 1998 | E22: =VLOOKUP(B:B,'разряды м.'!$A$5:$AB$205,28,FALSE) -> 1 | F22: 8.580960969 | G22: 21.3 | I22: 29.88096097
A23: 18 | B23: Ченуша Алексей | C23: =VLOOKUP(B23:B59,'разряды м.'!$A$5:$AB$205,2,FALSE) -> Хан-Тенгри | D23: =VLOOKUP(B23:B59,'разряды м.'!$A$5:$AB$205,3,FALSE) -> 1969 | E23: =VLOOKUP(B:B,'разряды м.'!$A$5:$AB$205,28,FALSE) -> 1 | F23: 15.25504172 | G23: 12.8 | I23: 28.05504172
A24: 19 | B24: Вальковский Владимир | C24: =VLOOKUP(B24:B60,'разряды м.'!$A$5:$AB$205,2,FALSE) -> ГОЦТиКДиМ Гомель | D24: =VLOOKUP(B24:B60,'разряды м.'!$A$5:$AB$205,3,FALSE) -> 1992 | E24: =VLOOKUP(B:B,'разряды м.'!$A$5:$AB$205,28,FALSE) -> КМС | G24: 26.3 | I24: 26.3
A25: 20 | B25: Денисевич Евгений | C25: =VLOOKUP(B25:B61,'разряды м.'!$A$5:$AB$205,2,FALSE) -> Брестская область | D25: =VLOOKUP(B25:B61,'разряды м.'!$A$5:$AB$205,3,FALSE) -> 1994 | E25: =VLOOKUP(B:B,'разряды м.'!$A$5:$AB$205,28,FALSE) -> КМС | F25: 25.74288291 | I25: 25.74288291
A26: 21 | B26: Никифоровец Максим | C26: =VLOOKUP(B26:B62,'разряды м.'!$A$5:$AB$205,2,FALSE) -> Минск | D26: =VLOOKUP(B26:B62,'разряды м.'!$A$5:$AB$205,3,FALSE) -> 1997 | E26: =VLOOKUP(B:B,'разряды м.'!$A$5:$AB$205,28,FALSE) -> КМС | F26: 21.92912248 | I26: 21.92912248
A27: 22 | B27: Остроухов Егор | C27: =VLOOKUP(B27:B63,'разряды м.'!$A$5:$AB$205,2,FALSE) -> ПРЦДиМ Полоцк | D27: =VLOOKUP(B27:B63,'разряды м.'!$A$5:$AB$205,3,FALSE) -> 1973 | E27: =VLOOKUP(B:B,'разряды м.'!$A$5:$AB$205,28,FALSE) -> 1 | F27: 21.92912248 | I27: 21.92912248
A28: 23 | B28: Бережной Максим | C28: =VLOOKUP(B28:B64,'разряды м.'!$A$5:$AB$205,2,FALSE) -> РЦЭК | D28: =VLOOKUP(B28:B64,'разряды м.'!$A$5:$AB$205,3,FALSE) -> 2000 | E28: =VLOOKUP(B:B,'разряды м.'!$A$5:$AB$205,28,FALSE) -> 3 | H28: 20.08973078 | I28: 20.08973078
A29: 24 | B29: Кухоренко Максим | C29: =VLOOKUP(B29:B65,'разряды м.'!$A$5:$AB$205,2,FALSE) -> Витебск | D29: =VLOOKUP(B29:B65,'разряды м.'!$A$5:$AB$205,3,FALSE) -> 1985 | E29: =VLOOKUP(B:B,'разряды м.'!$A$5:$AB$205,28,FALSE) -> 1 | G29: 19.2 | I29: 19.2
A30: 25 | B30: Соковых Евгений | C30: =VLOOKUP(B30:B66,'разряды м.'!$A$5:$AB$205,2,FALSE) -> Хан-Тенгри | D30: =VLOOKUP(B30:B66,'разряды м.'!$A$5:$AB$205,3,FALSE) -> 1988 | E30: =VLOOKUP(B:B,'разряды м.'!$A$5:$AB$205,28,FALSE) -> КМС | F30: 19.06880215 | I30: 19.06880215
A31: 26 | B31: Писарев Кирилл | C31: =VLOOKUP(B31:B67,'разряды м.'!$A$5:$AB$205,2,FALSE) -> ДЮСШ «Омега» Гом. | D31: =VLOOKUP(B31:B67,'разряды м.'!$A$5:$AB$205,3,FALSE) -> 2001 | E31: =VLOOKUP(B:B,'разряды м.'!$A$5:$AB$205,28,FALSE) -> 1 | H31: 17.21976924 | I31: 17.21976924
A32: 27 | B32: Денисман Юрий | C32: =VLOOKUP(B32:B68,'разряды м.'!$A$5:$AB$205,2,FALSE) -> MinskOnsight Мн. | D32: =VLOOKUP(B32:B68,'разряды м.'!$A$5:$AB$205,3,FALSE) -> 1982 | E32: =VLOOKUP(B:B,'разряды м.'!$A$5:$AB$205,28,FALSE) -> КМС | F32: 17.16192194 | I32: 17.16192194
A33: 28 | B33: Рубенок Артем | C33: =VLOOKUP(B33:B69,'разряды м.'!$A$5:$AB$205,2,FALSE) -> Витебск | D33: =VLOOKUP(B33:B69,'разряды м.'!$A$5:$AB$205,3,FALSE) -> 1986 | E33: =VLOOKUP(B:B,'разряды м.'!$A$5:$AB$205,28,FALSE) -> 1 | G33: 6.4 | H33: 9.566538469 | I33: 15.96653847
A34: 29 | B34: Степаненко Олег | C34: =VLOOKUP(B34:B70,'разряды м.'!$A$5:$AB$205,2,FALSE) -> Гомельская обл. | D34: =VLOOKUP(B34:B70,'разряды м.'!$A$5:$AB$205,3,FALSE) -> 2001 | E34: =VLOOKUP(B:B,'разряды м.'!$A$5:$AB$205,28,FALSE) -> 1 юн | H34: 15.30646155 | I34: 15.30646155
A35: 30 | B35: Болденко Валерий | C35: =VLOOKUP(B35:B71,'разряды м.'!$A$5:$AB$205,2,FALSE) -> ДЮСШ «Омега» Гом. | D35: =VLOOKUP(B35:B71,'разряды м.'!$A$5:$AB$205,3,FALSE) -> 1993 | E35: =VLOOKUP(B:B,'разряды м.'!$A$5:$AB$205,28,FALSE) -> 1 | G35: 12.8 | I35: 12.8
A36: 31 | B36: Ложкин Денис | C36: =VLOOKUP(B36:B72,'разряды м.'!$A$5:$AB$205,2,FALSE) -> MinskOnsight Мн. | D36: =VLOOKUP(B36:B72,'разряды м.'!$A$5:$AB$205,3,FALSE) -> 1983 | E36: =VLOOKUP(B:B,'разряды м.'!$A$5:$AB$205,28,FALSE) -> 1 | G36: 12.8 | I36: 12.8
A37: 32 | B37: Карпов Роман | C37: =VLOOKUP(B37:B73,'разряды м.'!$A$5:$AB$205,2,FALSE) -> MinskOnsight Мн. | D37: =VLOOKUP(B37:B73,'разряды м.'!$A$5:$AB$205,3,FALSE) -> 1981 | E37: =VLOOKUP(B:B,'разряды м.'!$A$5:$AB$205,28,FALSE) -> 2 | F37: 9.534401076 | G37: 2.8 | I37: 12.33440108
A38: 33 | B38: Мертенс Андрей | C38: =VLOOKUP(B38:B74,'разряды м.'!$A$5:$AB$205,2,FALSE) -> г. Витебск | D38: =VLOOKUP(B38:B74,'разряды м.'!$A$5:$AB$205,3,FALSE) -> 1992 | E38: =VLOOKUP(B:B,'разряды м.'!$A$5:$AB$205,28,FALSE) -> 3 | H38: 11.47984616 | I38: 11.47984616
A39: 34 | B39: Живица Арсений | C39: =VLOOKUP(B39:B75,'разряды м.'!$A$5:$AB$205,2,FALSE) -> Минск | D39: =VLOOKUP(B39:B75,'разряды м.'!$A$5:$AB$205,3,FALSE) -> 2000 | E39: =VLOOKUP(B:B,'разряды м.'!$A$5:$AB$205,28,FALSE) -> 1 | F39: 11.44128129 | I39: 11.44128129
A40: 35 | B40: Давыдов Денис | C40: =VLOOKUP(B40:B76,'разряды м.'!$A$5:$AB$205,2,FALSE) -> Минск | D40: =VLOOKUP(B40:B76,'разряды м.'!$A$5:$AB$205,3,FALSE) -> 2000 | E40: =VLOOKUP(B:B,'разряды м.'!$A$5:$AB$205,28,FALSE) -> 1 | F40: 4.767200538 | G40: 6.4 | I40: 11.16720054
A41: 36 | B41: Бессер Родион | C41: =VLOOKUP(B41:B77,'разряды м.'!$A$5:$AB$205,2,FALSE) -> MinskOnsight Мн. | D41: =VLOOKUP(B41:B77,'разряды м.'!$A$5:$AB$205,3,FALSE) -> 1981 | E41: =VLOOKUP(B:B,'разряды м.'!$A$5:$AB$205,28,FALSE) -> 1 | G41: 9.2 | I41: 9.2
A42: 37 | B42: Зюзин Иван | C42: =VLOOKUP(B42:B78,'разряды м.'!$A$5:$AB$205,2,FALSE) -> Минск | D42: =VLOOKUP(B42:B78,'разряды м.'!$A$5:$AB$205,3,FALSE) -> 2001 | E42: =VLOOKUP(B:B,'разряды м.'!$A$5:$AB$205,28,FALSE) -> 1 | H42: 7.653230775 | I42: 7.653230775
A43: 38 | B43: Зуенок Александр | C43: =VLOOKUP(B43:B79,'разряды м.'!$A$5:$AB$205,2,FALSE) ->  | D43: =VLOOKUP(B43:B79,'разряды м.'!$A$5:$AB$205,3,FALSE) ->  | E43: =VLOOKUP(B:B,'разряды м.'!$A$5:$AB$205,28,FALSE) ->  | H43: 5.739923081 | I43: 5.739923081
A44: 39 | B44: Магер Даниил | C44: =VLOOKUP(B44:B80,'разряды м.'!$A$5:$AB$205,2,FALSE) -> Полоцк | D44: =VLOOKUP(B44:B80,'разряды м.'!$A$5:$AB$205,3,FALSE) -> 1998 | E44: =VLOOKUP(B:B,'разряды м.'!$A$5:$AB$205,28,FALSE) -> юн | F44: 5.720640646 | I44: 5.720640646
A45: 40 | B45: Капитонов Илья | C45: =VLOOKUP(B45:B81,'разряды м.'!$A$5:$AB$205,2,FALSE) ->  | D45: =VLOOKUP(B45:B81,'разряды м.'!$A$5:$AB$205,3,FALSE) ->  | E45: =VLOOKUP(B:B,'разряды м.'!$A$5:$AB$205,28,FALSE) ->  | H45: 3.826615387 | I45: 3.826615387
A46: 41 | B46: Главацкий Сергей | C46: =VLOOKUP(B46:B82,'разряды м.'!$A$5:$AB$205,2,FALSE) -> Пуховичский р-н | D46: =VLOOKUP(B46:B82,'разряды м.'!$A$5:$AB$205,3,FALSE) -> 1998 | E46: =VLOOKUP(B:B,'разряды м.'!$A$5:$AB$205,28,FALSE) -> 1 | F46: 3.813760431 | I46: 3.813760431
A47: 42 | B47: Циркунов Александр | C47: =VLOOKUP(B47:B83,'разряды м.'!$A$5:$AB$205,2,FALSE) -> Витебск | D47: =VLOOKUP(B47:B83,'разряды м.'!$A$5:$AB$205,3,FALSE) -> 1988 | E47: =VLOOKUP(B:B,'разряды м.'!$A$5:$AB$205,28,FALSE) -> 2 | F47: 2.860320323 | I47: 2.860320323
A48: 43 | B48: Самухин Василий | C48: =VLOOKUP(B48:B84,'разряды м.'!$A$5:$AB$205,2,FALSE) -> Минск | D48: =VLOOKUP(B48:B84,'разряды м.'!$A$5:$AB$205,3,FALSE) -> 2000 | E48: =VLOOKUP(B:B,'разряды м.'!$A$5:$AB$205,28,FALSE) -> 3 | H48: 1.913307694 | I48: 1.913307694
A49: 44 | B49: Огарко Михаил | C49: =VLOOKUP(B49:B85,'разряды м.'!$A$5:$AB$205,2,FALSE) ->  | D49: =VLOOKUP(B49:B85,'разряды м.'!$A$5:$AB$205,3,FALSE) ->  | E49: =VLOOKUP(B:B,'разряды м.'!$A$5:$AB$205,28,FALSE) ->  | G49: 1.4 | I49: 1.4
A50: 45 | B50: Стрельский Максим | C50: =VLOOKUP(B50:B86,'разряды м.'!$A$5:$AB$205,2,FALSE) -> Пуховичский р-н | D50: =VLOOKUP(B50:B86,'разряды м.'!$A$5:$AB$205,3,FALSE) -> 1998 | E50: =VLOOKUP(B:B,'разряды м.'!$A$5:$AB$205,28,FALSE) -> б/р | F50: 0.9534401076 | I50: 0.9534401076

Sheet женщины тр.
A1: Текущий рейтинг
A2: Женщины, трудность
A3: на 1.05.2015 года | F3: ЧРБ-2013 | G3: КБ-2014 | H3: ЧРБ-2015
A4: Место | B4: Фамилия, Имя | C4: Команда | D4: г.р. | E4: Подтвержденный разряд | F4: Витебск | G4: Витебск | H4: Витебск | I4: общий рез-т
F5: 5-8.12.13 | G5: 10-13.04.14 | H5: 17-20.04.15
A6: 1 | B6: Малыженкова Лариса | C6: =VLOOKUP($B$6:$B$31,'разряды ж.'!$A$5:$AB$202,2,FALSE) -> Минск | D6: =VLOOKUP($B$6:$B$31,'разряды ж.'!$A$5:$AB$202,3,FALSE) -> 1975 | E6: =VLOOKUP($B$6:$B$31,'разряды ж.'!$A$5:$AB$202,28,FALSE) -> КМС | F6: 30.94460021 | H6: 23.75083358 | I6: =SUM(F6:H6) -> 54.69543379
A7: 2 | B7: Федоркевич Светлана | C7: =VLOOKUP($B$6:$B$31,'разряды ж.'!$A$5:$AB$202,2,FALSE) -> ГОЦТиКДиМ | D7: =VLOOKUP($B$6:$B$31,'разряды ж.'!$A$5:$AB$202,3,FALSE) -> 1992 | E7: =VLOOKUP($B$6:$B$31,'разряды ж.'!$A$5:$AB$202,28,FALSE) -> КМС | F7: 22.01827323 | G7: 30.1 | I7: 52.11827323
A8: 3 | B8: Лясович Наталья | C8: =VLOOKUP($B$6:$B$31,'разряды ж.'!$A$5:$AB$202,2,FALSE) -> Витебск | D8: =VLOOKUP($B$6:$B$31,'разряды ж.'!$A$5:$AB$202,3,FALSE) -> 1985 | E8: =VLOOKUP($B$6:$B$31,'разряды ж.'!$A$5:$AB$202,28,FALSE) -> 1 | F8: 11.30668085 | G8: 16.9 | H8: 16.21088641 | I8: 44.41756726
A9: 4 | B9: Самсонова Мария | C9: =VLOOKUP($B$6:$B$31,'разряды ж.'!$A$5:$AB$202,2,FALSE) -> С/к «Торпедо» Мг. | D9: =VLOOKUP($B$6:$B$31,'разряды ж.'!$A$5:$AB$202,3,FALSE) -> 1984 | E9: =VLOOKUP($B$6:$B$31,'разряды ж.'!$A$5:$AB$202,28,FALSE) -> КМС | F9: 42.84636953 | I9: 42.84636953
A10: 5 | B10: Кореневская Вероника | C10: =VLOOKUP($B$6:$B$31,'разряды ж.'!$A$5:$AB$202,2,FALSE) -> Минск | D10: =VLOOKUP($B$6:$B$31,'разряды ж.'!$A$5:$AB$202,3,FALSE) -> 1997 | E10: =VLOOKUP($B$6:$B$31,'разряды ж.'!$A$5:$AB$202,28,FALSE) -> 2 | F10: 13.68703471 | G10: 8.6 | H10: 10.55592603 | I10: 32.84296074
A11: 6 | B11: Веретенникова Елена | C11: =VLOOKUP($B$6:$B$31,'разряды ж.'!$A$5:$AB$202,2,FALSE) -> Минск | D11: =VLOOKUP($B$6:$B$31,'разряды ж.'!$A$5:$AB$202,3,FALSE) -> 1991 | E11: =VLOOKUP($B$6:$B$31,'разряды ж.'!$A$5:$AB$202,28,FALSE) -> КМС | G11: 16.9 | I11: 16.9
A12: 7 | B12: Кузина Юлия | C12: =VLOOKUP($B$6:$B$31,'разряды ж.'!$A$5:$AB$202,2,FALSE) -> Бобруйск | D12: =VLOOKUP($B$6:$B$31,'разряды ж.'!$A$5:$AB$202,3,FALSE) -> 1999 | E12: =VLOOKUP($B$6:$B$31,'разряды ж.'!$A$5:$AB$202,28,FALSE) -> 1 | F12: 16.06738857 | I12: 16.06738857
A13: 8 | B13: Якубович Карина | C13: =VLOOKUP($B$6:$B$31,'разряды ж.'!$A$5:$AB$202,2,FALSE) -> ЦТиКДМ г. Пинска | D13: =VLOOKUP($B$6:$B$31,'разряды ж.'!$A$5:$AB$202,3,FALSE) -> 1998 | E13: =VLOOKUP($B$6:$B$31,'разряды ж.'!$A$5:$AB$202,28,FALSE) -> 2 | F13: 8.926326984 | I13: 8.926326984
A14: 9 | B14: Ермохина Дарья | C14: =VLOOKUP($B$6:$B$31,'разряды ж.'!$A$5:$AB$202,2,FALSE) -> РЦЭК | D14: =VLOOKUP($B$6:$B$31,'разряды ж.'!$A$5:$AB$202,3,FALSE) -> 1999 | E14: =VLOOKUP($B$6:$B$31,'разряды ж.'!$A$5:$AB$202,28,FALSE) -> 1 юн | G14: 5.7 | H14: 2.26198415 | I14: 7.96198415
A15: 10 | B15: Шуляк Марина | C15: =VLOOKUP($B$6:$B$31,'разряды ж.'!$A$5:$AB$202,2,FALSE) -> Хан-Тенгри | D15: =VLOOKUP($B$6:$B$31,'разряды ж.'!$A$5:$AB$202,3,FALSE) -> 1989 | E15: =VLOOKUP($B$6:$B$31,'разряды ж.'!$A$5:$AB$202,28,FALSE) -> б/р | F15: 7.141061588 | I15: 7.141061588
A16: 11 | B16: Копусова Ксения | C16: =VLOOKUP($B$6:$B$31,'разряды ж.'!$A$5:$AB$202,2,FALSE) -> Минск | D16: 2001 | E16: =VLOOKUP($B$6:$B$31,'разряды ж.'!$A$5:$AB$202,28,FALSE) -> 2 | H16: 6.785952451 | I16: 6.785952451
A17: 12 | B17: Веретенникова Екатерина | C17: =VLOOKUP($B$6:$B$31,'разряды ж.'!$A$5:$AB$202,2,FALSE) -> Минск | D17: =VLOOKUP($B$6:$B$31,'разряды ж.'!$A$5:$AB$202,3,FALSE) -> 1989 | E17: =VLOOKUP($B$6:$B$31,'разряды ж.'!$A$5:$AB$202,28,FALSE) -> б/р | G17: 5.7 | I17: 5.7
A18: 13 | B18: Разуменко Кристина | C18: =VLOOKUP($B$6:$B$31,'разряды ж.'!$A$5:$AB$202,2,FALSE) ->  | D18: =VLOOKUP($B$6:$B$31,'разряды ж.'!$A$5:$AB$202,3,FALSE) ->  | E18: =VLOOKUP($B$6:$B$31,'разряды ж.'!$A$5:$AB$202,28,FALSE) ->  | F18: 5.355796191 | I18: 5.355796191
A19: 14 | B19: Гацулина Анастасия | C19: =VLOOKUP($B$6:$B$31,'разряды ж.'!$A$5:$AB$202,2,FALSE) -> ГОЦТиКДиМ | D19: 1997 | E19: =VLOOKUP($B$6:$B$31,'разряды ж.'!$A$5:$AB$202,28,FALSE) -> б/р | H19: 5.277963017 | I19: 5.277963017
A20: 15 | B20: Болсун Софья | C20: =VLOOKUP($B$6:$B$31,'разряды ж.'!$A$5:$AB$202,2,FALSE) -> ДЮСШ "Омега" | D20: =VLOOKUP($B$6:$B$31,'разряды ж.'!$A$5:$AB$202,3,FALSE) -> 1998 | E20: =VLOOKUP($B$6:$B$31,'разряды ж.'!$A$5:$AB$202,28,FALSE) -> б/р | F20: 1.785265397 | G20: 2.1 | I20: 3.885265397
A21: 16 | B21: Коноплева Марина | C21: =VLOOKUP($B$6:$B$31,'разряды ж.'!$A$5:$AB$202,2,FALSE) -> Гомельская обл. | D21: 2001 | E21: =VLOOKUP($B$6:$B$31,'разряды ж.'!$A$5:$AB$202,28,FALSE) -> 2 | H21: 3.769973584 | I21: 3.769973584
A22: 17 | B22: Кузичева Таисия | C22: =VLOOKUP($B$6:$B$31,'разряды ж.'!$A$5:$AB$202,2,FALSE) -> ГОЦТиКДиМ | D22: =VLOOKUP($B$6:$B$31,'разряды ж.'!$A$5:$AB$202,3,FALSE) -> 2000 | E22: =VLOOKUP($B$6:$B$31,'разряды ж.'!$A$5:$AB$202,28,FALSE) -> 2 | F22: 3.570530794 | I22: 3.570530794
A23: 18 | B23: Белковец Екатерина | C23: =VLOOKUP($B$6:$B$31,'разряды ж.'!$A$5:$AB$202,2,FALSE) ->  | D23: =VLOOKUP($B$6:$B$31,'разряды ж.'!$A$5:$AB$202,3,FALSE) ->  | E23: =VLOOKUP($B$6:$B$31,'разряды ж.'!$A$5:$AB$202,28,FALSE) ->  | G23: 2.1 | I23: 2.1
A24: 19 | B24: Русинович Светлана | C24: =VLOOKUP($B$6:$B$31,'разряды ж.'!$A$5:$AB$202,2,FALSE) -> ГОЦТиКДиМ | D24: 1990 | E24: =VLOOKUP($B$6:$B$31,'разряды ж.'!$A$5:$AB$202,28,FALSE) -> б/р | H24: 1.130992075 | I24: 1.130992075

Sheet разряды м.
D2: 2013 | F2: 2014 | P2: 2015 | Y2: 2013
D3: Чемпионат и первенство Беларуси, Витебск, 5-9.12.2013 | F3: Первенство Беларуси, Минск, 21-22.02.2014 | G3: Чемпионат Беларуси, Минск, 21-23.02.2014 | H3: Первенство Беларуси, Минск, 21-23.03.2014 | I3: Первенство Гомеля, 4-6.04.2014 | K3: Кубок Беларуси, Витебск, 12-13.04.2014 | M3: Первенство Беларуси, Гомель, 7-8.11.2014 | O3: Кубок Беларуси, Пинск, 22-23.11.2014 | P3: Первенство Гом. обл., 31.01-1.02.1015 | Q3: Чемпионат и первенство Беларуси, Минск, 27.02-1.03.2015 | R3: Первенство Беларуси, Минск, 21-22.03.2015 | S3: Первенство Гомеля, 3-5.04.2015 | U3: Чемпионат и первенство Беларуси, Витебск, 17-20.04.2015 | W3: Первенство Минска, Минск, 16-17.05.2015 | Y3: Первенство Беларуси, Пинск, 21-22.11.2013 | AA3: Кубок Беларуси, Пинск, 22-24.11.2013 | AB3: Текущий разряд
A4: Фамилия, Имя | B4: команда | C4: г.р. | D4: С | E4: Т | F4: Б | G4: Б | H4: Б | I4: С | J4: Т | K4: С | L4: Т | M4: С | N4: Т | O4: Б | P4: Б | Q4: Б | R4: Б | S4: С | T4: Т | U4: С | V4: Т | W4: С | X4: Т | Y4: Т | Z4: С | AA4: Б
A5: Аблажевич Виктор | B5: Гомельская обл. | C5: 2000 | E5: 3 | K5: 2 | L5: 2 | Q5: 2 | U5: 2 | Y5: 2 | Z5: 3 | AB5: =IF(OR(D5="МС",E5="МС",F5="МС",G5="МС",H5="МС",I5="МС",J5="МС",K5="МС",L5="МС",M5="МС",N5="МС",O5="МС",P5="МС",Q5="МС",R5="МС",S5="МС",T5="МС",U5="МС",V5="МС",W5="МС",X5="МС",Y5="МС",Z5="МС",AA5="МС"),"МС",IF(OR(D5="КМС",E5="КМС",F5="КМС",G5="КМС",H5="КМС",I5="КМС",J5="КМС",K5="КМС",L5="КМС",M5="КМС",N5="КМС",O5="КМС",P5="КМС",Q5="КМС",R5="КМС",S5="КМС",T5="КМС",U5="КМС",V5="КМС",W5="КМС",X5="КМС",Y5="КМС",Z5="КМС",AA5="КМС"),"КМС",IF(OR(D5=1,E5=1,F5=1,G5=1,H5=1,I5=1,J5=1,K5=1,L5=1,M5=1,N5=1,O5=1,P5=1,Q5=1,R5=1,S5=1,T5=1,U5=1,V5=1,W5=1,X5=1,Y5=1,Z5=1,AA5=1),1,IF(OR(D5=2,E5=2,F5=2,G5=2,H5=2,I5=2,J5=2,K5=2,L5=2,M5=2,N5=2,O5=2,P5=2,Q5=2,R5=2,S5=2,T5=2,U5=2,V5=2,W5=2,X5=2,Y5=2,Z5=2,AA5=2),2,IF(OR(D5=3,E5=3,F5=3,G5=3,H5=3,I5=3,J5=3,K5=3,L5=3,M5=3,N5=3,O5=3,P5=3,Q5=3,R5=3,S5=3,T5=3,U5=3,V5=3,W5=3,X5=3,Y5=3,Z5=3,AA5=3),3,IF(OR(D5="1 юн",E5="1 юн",F5="1 юн",G5="1 юн",H5="1 юн",I5="1 юн",J5="1 юн",K5="1 юн",L5="1 юн",M5="1 юн",N5="1 юн",O5="1 юн",P5="1 юн",Q5="1 юн",R5="1 юн",S5="1 юн",T5="1 юн",U5="1 юн",V5="1 юн",W5="1 юн",X5="1 юн",Y5="1 юн",Z5="1 юн",AA5="1 юн"),"1 юн",IF(OR(D5="юн",E5="юн",F5="юн",G5="юн",H5="юн",I5="юн",J5="юн",K5="юн",L5="юн",M5="юн",N5="юн",O5="юн",P5="юн",Q5="юн",R5="юн",S5="юн",T5="юн",U5="юн",V5="юн",W5="юн",X5="юн",Y5="юн",Z5="юн",AA5="юн"),"юн","б/р"))))))) -> 2
A6: Адамович Дмитрий | B6: Брестская область | C6: 1997 | AB6: б/р
A7: Аксенов Павел | B7: Витебск | C7: 1989 | G7: 1 | AB7: 1
A8: Астапов Максим | B8: ГОЦТиКДиМ Гомель | C8: 2001 | H8: 3 | I8: 2 | M8: 1 юн | N8: 2 | Q8: 3 | Z8: юн | AB8: 2
A9: Астапчик Дмитрий | B9: Пуховичский р-н | C9: 2003 | H9: юн | M9: юн | N9: юн | T9: юн | X9: юн | AB9: юн
A10: Астапчик Павел | B10: Пуховичский р-н | C10: 2006 | N10: юн | R10: юн | T10: юн | X10: 1 юн | AB10: 1 юн
A11: Бабанов Игорь | B11: С/к «Торпедо» Мг. | C11: 1989 | G11: 1 | AB11: 1
A12: Бадей Никита | B12: РЦЭК | C12: 2004 | AB12: б/р
A13: Батраков Андрей | B13: Брестская область | C13: 1998 | D13: 3 | E13: 2 | F13: 2 | AB13: 2
A14: Батура Дмитрий | B14: МогилёвскийОЦФВиС | C14: 2004 | H14: юн | Y14: юн | Z14: юн | AB14: юн
A15: Беляцкий Артем | B15: СШ № 1 г. Ветка | C15: 2002 | H15: 1 юн | I15: 1 юн | M15: 1 юн | N15: 1 юн | P15: 1 юн | R15: 3 | S15: 2 | T15: 1 юн | Y15: юн | Z15: юн | AB15: 2
A16: Бережной Максим | B16: РЦЭК | C16: 2000 | Q16: 3 | Y16: юн | Z16: юн | AB16: 3
A17: Бережной Тимофей | B17: Фрунзенский ФОЦ | C17: 2003 | H17: 1 юн | I17: 2 | J17: 2 | M17: 2 | N17: 1 юн | R17: 2 | S17: 2 | T17: 2 | X17: 3 | Y17: 1 юн | Z17: 1 юн | AB17: 2
A18: Бессер Родион | B18: MinskOnsight Мн. | C18: 1981 | G18: 1 | L18: 1 | AB18: 1
A19: Бецковский Артем | B19: Могилевская область | C19: 2000 | Z19: 3 | AB19: 3
A20: Бобков Константин | B20: ДЮСШ «Омега» Гом. | C20: 2005 | H20: юн | I20: 1 юн | J20: 2 | M20: 1 юн | N20: 1 юн | R20: 3 | W20: юн | X20: 1 юн | Y20: 1 юн | Z20: юн | AB20: 2
A21: Болденко Валерий | B21: ДЮСШ «Омега» Гом. | C21: 1993 | K21: 2 | L21: 1 | P21: 3 | AB21: 1
A22: Буйленков Павел | B22: Гомельская обл. | C22: 1993 | G22: 1 | K22: 1 | L22: КМС | P22: 3 | Q22: 1 | AA22: 2 | AB22: КМС
A23: Бурый Алексей | B23: Пуховичский р-н | C23: 2002 | H23: юн | M23: юн | N23: 2 | S23: 2 | T23: 2 | AB23: 2
A24: Быкадоров Артем | B24: Пуховичский р-н | C24: 2005 | H24: юн | N24: юн | S24: юн | AB24: юн
A25: Вальковский Владимир | B25: ГОЦТиКДиМ Гомель | C25: 1992 | G25: 1 | K25: КМС | L25: КМС | O25: 1 | U25: КМС | AB25: КМС
A26: Василец Александр | B26: ДЮСШ «Омега» Гом. | C26: 1987 | P26: 1 | AB26: 1
A27: Васильев Даниил | B27: Могилевская область | C27: 2000 | H27: 2 | Y27: юн | Z27: юн | AB27: 2
A28: Ведерников Илья | B28: РЦЭК | C28: 2004 | H28: 1 юн | M28: 2 | N28: 1 юн | Y28: юн | Z28: юн | AB28: 2
A29: Веревкин Владислав | B29: Речица | C29: 1999 | AB29: б/р
A30: Виниченко Андрей | B30: Хан-Тенгри | C30: 1988 | G30: 1 | AB30: 1
A31: Винчевский Максим | B31: Хан-Тенгри | C31: 1991 | O31: 2 | AB31: 2
A32: Власенко Алексей | B32: ГОЦТиКДиМ Гомель | C32: 1997 | AB32: б/р
A33: Волосович Дмитрий | B33: Гомельская обл. | C33: 1995 | D33: 2 | E33: КМС | G33: КМС | P33: КМС | Q33: КМС | AA33: КМС | AB33: КМС
A34: Волчек Алексей | B34: РЦЭК | C34: 2001 | H34: юн | AB34: юн
A35: Гатальский Дмитрий | B35: СШ № 1 г. Ветка | C35: 2003 | M35: 1 юн | AB35: 1 юн
A36: Германович Олег | B36: Гомельская обл. | C36: 1999 | AB36: б/р
A37: Главацкий Сергей | B37: Пуховичский р-н | C37: 1998 | D37: 3 | F37: 1 | AB37: =IF(OR(D37="МС",E37="МС",F37="МС",G37="МС",H37="МС",I37="МС",J37="МС",K37="МС",L37="МС",M37="МС",N37="МС",O37="МС",P37="МС",Q37="МС",R37="МС",S37="МС",T37="МС",U37="МС",V37="МС",W37="МС",X37="МС",Y37="МС",Z37="МС",AA37="МС"),"МС",IF(OR(D37="КМС",E37="КМС",F37="КМС",G37="КМС",H37="КМС",I37="КМС",J37="КМС",K37="КМС",L37="КМС",M37="КМС",N37="КМС",O37="КМС",P37="КМС",Q37="КМС",R37="КМС",S37="КМС",T37="КМС",U37="КМС",V37="КМС",W37="КМС",X37="КМС",Y37="КМС",Z37="КМС",AA37="КМС"),"КМС",IF(OR(D37=1,E37=1,F37=1,G37=1,H37=1,I37=1,J37=1,K37=1,L37=1,M37=1,N37=1,O37=1,P37=1,Q37=1,R37=1,S37=1,T37=1,U37=1,V37=1,W37=1,X37=1,Y37=1,Z37=1,AA37=1),1,IF(OR(D37=2,E37=2,F37=2,G37=2,H37=2,I37=2,J37=2,K37=2,L37=2,M37=2,N37=2,O37=2,P37=2,Q37=2,R37=2,S37=2,T37=2,U37=2,V37=2,W37=2,X37=2,Y37=2,Z37=2,AA37=2),2,IF(OR(D37=3,E37=3,F37=3,G37=3,H37=3,I37=3,J37=3,K37=3,L37=3,M37=3,N37=3,O37=3,P37=3,Q37=3,R37=3,S37=3,T37=3,U37=3,V37=3,W37=3,X37=3,Y37=3,Z37=3,AA37=3),3,IF(OR(D37="1 юн",E37="1 юн",F37="1 юн",G37="1 юн",H37="1 юн",I37="1 юн",J37="1 юн",K37="1 юн",L37="1 юн",M37="1 юн",N37="1 юн",O37="1 юн",P37="1 юн",Q37="1 юн",R37="1 юн",S37="1 юн",T37="1 юн",U37="1 юн",V37="1 юн",W37="1 юн",X37="1 юн",Y37="1 юн",Z37="1 юн",AA37="1 юн"),"1 юн",IF(OR(D37="юн",E37="юн",F37="юн",G37="юн",H37="юн",I37="юн",J37="юн",K37="юн",L37="юн",M37="юн",N37="юн",O37="юн",P37="юн",Q37="юн",R37="юн",S37="юн",T37="юн",U37="юн",V37="юн",W37="юн",X37="юн",Y37="юн",Z37="юн",AA37="юн"),"юн","б/р"))))))) -> 1
A38: Головач Алексей | B38: ГОЦТиКДиМ Гомель | C38: 2003 | M38: 1 юн | N38: 1 юн | AB38: 1 юн
A39: Голубев Денис | B39: Витебск | C39: 1994 | E39: КМС | AB39: КМС
A40: Голубев Сергей | B40: MinskOnsight Мн. | C40: 1985 | O40: 2 | AA40: 2 | AB40: 2
A41: Горбачевский Дмитрий | B41: Брестская область | C41: 1998 | AB41: б/р
A42: Граменицкий Игорь | B42: РЦЭК | C42: 2006 | T42: юн | X42: юн | AB42: юн
A43: Грибовский Павел | B43: Бобруйск | C43: 1885 | G43: КМС | O43: 2 | P43: 1 | AB43: КМС
A44: Гришанов Григорий | B44: РЦЭК | C44: 2003 | H44: юн | I44: 1 юн | J44: 1 юн | Y44: 1 юн | Z44: юн | AB44: 1 юн
A45: Гурков Тимофей | B45: РЦЭК | C45: 2006 | X45: юн | AB45: юн
A46: Гусев Дмитрий | B46: ДЮСШ «Омега» Гом. | C46: 2003 | H46: 3 | M46: 1 юн | N46: 1 юн | X46: юн | Y46: юн | Z46: 1 юн | AB46: 3
A47: Гутиков Роман | B47: Орша | C47: 1989 | G47: 1 | AA47: 2 | AB47: 1
A48: Давыдов Денис | B48: Минск | C48: 2000 | D48: 2 | E48: юн | F48: 1 | G48: 2 | K48: 2 | L48: 1 | O48: 2 | Q48: 2 | Y48: юн | Z48: 2 | AB48: 1
A49: Даниленко Ярослав | B49: ГОЦТиКДиМ Гомель | C49: 2001 | AB49: б/р
A50: Демешко Александр | B50: Хан-Тенгри | C50: 1994 | Q50: 1 | AA50: 2 | AB50: 1
A51: Демещенко Александр | B51: Брестская область | C51: 2001 | F51: 2 | P51: 2 | Q51: 3 | Y51: юн | Z51: юн | AB51: 2
A52: Демидович Алексей | B52: Пуховичский р-н | C52: 2000 | P52: 1 юн | AB52: 1 юн
A53: Денисевич Евгений | B53: Брестская область | C53: 1994 | D53: КМС | E53: 2 | AA53: 2 | AB53: КМС
A54: Денисман Юрий | B54: MinskOnsight Мн. | C54: 1982 | G54: 1 | AA54: КМС | AB54: КМС
A55: Дишук Вадим | B55: Хан-Тенгри | C55: 1985 | AB55: б/р
A56: Добрянский Александр | B56: Шклов | C56: 1994 | O56: 1 | AB56: 1
A57: Домашевич Артем | B57: Хан-Тенгри | C57: 1988 | AB57: б/р
A58: Драбинко Артур | B58: Бобруйск | C58: 1994 | G58: КМС | O58: КМС | P58: 1 | AA58: 1 | AB58: КМС
A59: Дубовский Андрей | B59: Хан-Тенгри | C59: 1987 | AB59: б/р
A60: Дудянов Евгений | B60: ГОЦТиКДиМ Гомель | C60: 1996 | O60: 3 | P60: юн | AB60: 3
A61: Дуло Кирилл | B61: Минск | C61: 2003 | H61: юн | AB61: юн
A62: Дюбенков Дмитрий | B62: Гомельская обл. | C62: 1992 | D62: КМС | E62: 2 | G62: 1 | K62: КМС | L62: 1 | P62: 2 | Q62: КМС | V62: 2 | AA62: 2 | AB62: КМС
A63: Евченко Александр | B63: Минск | C63: 1990 | AB63: б/р
A64: Ермохин Вадим | B64: РЦЭК | C64: 2005 | H64: юн | J64: 1 юн | M64: юн | N64: юн | AB64: 1 юн
A65: Есипенок Алексей | B65: Пуховичский р-н | C65: 2004 | H65: юн | N65: юн | R65: 1 юн | S65: юн | AB65: 1 юн
A66: Живица Арсений | B66: Минск | C66: 2000 | D66: 2 | E66: 2 | F66: 1 | G66: 1 | Q66: 2 | Y66: юн | Z66: 2 | AB66: 1
A67: Живица Елисей | B67: Минск | C67: 2005 | Y67: юн | AB67: юн
A68: Журавлев Артем | B68: ГОЦТиКДиМ Гомель | C68: 2000 | P68: 2 | Q68: 2 | AB68: 2
A69: Загорский Владислав | B69: Могилевская область | C69: 1998 | F69: юн | AB69: =IF(OR(D69="МС",E69="МС",F69="МС",G69="МС",H69="МС",I69="МС",J69="МС",K69="МС",L69="МС",M69="МС",N69="МС",O69="МС",P69="МС",Q69="МС",R69="МС",S69="МС",T69="МС",U69="МС",V69="МС",W69="МС",X69="МС",Y69="МС",Z69="МС",AA69="МС"),"МС",IF(OR(D69="КМС",E69="КМС",F69="КМС",G69="КМС",H69="КМС",I69="КМС",J69="КМС",K69="КМС",L69="КМС",M69="КМС",N69="КМС",O69="КМС",P69="КМС",Q69="КМС",R69="КМС",S69="КМС",T69="КМС",U69="КМС",V69="КМС",W69="КМС",X69="КМС",Y69="КМС",Z69="КМС",AA69="КМС"),"КМС",IF(OR(D69=1,E69=1,F69=1,G69=1,H69=1,I69=1,J69=1,K69=1,L69=1,M69=1,N69=1,O69=1,P69=1,Q69=1,R69=1,S69=1,T69=1,U69=1,V69=1,W69=1,X69=1,Y69=1,Z69=1,AA69=1),1,IF(OR(D69=2,E69=2,F69=2,G69=2,H69=2,I69=2,J69=2,K69=2,L69=2,M69=2,N69=2,O69=2,P69=2,Q69=2,R69=2,S69=2,T69=2,U69=2,V69=2,W69=2,X69=2,Y69=2,Z69=2,AA69=2),2,IF(OR(D69=3,E69=3,F69=3,G69=3,H69=3,I69=3,J69=3,K69=3,L69=3,M69=3,N69=3,O69=3,P69=3,Q69=3,R69=3,S69=3,T69=3,U69=3,V69=3,W69=3,X69=3,Y69=3,Z69=3,AA69=3),3,IF(OR(D69="1 юн",E69="1 юн",F69="1 юн",G69="1 юн",H69="1 юн",I69="1 юн",J69="1 юн",K69="1 юн",L69="1 юн",M69="1 юн",N69="1 юн",O69="1 юн",P69="1 юн",Q69="1 юн",R69="1 юн",S69="1 юн",T69="1 юн",U69="1 юн",V69="1 юн",W69="1 юн",X69="1 юн",Y69="1 юн",Z69="1 юн",AA69="1 юн"),"1 юн",IF(OR(D69="юн",E69="юн",F69="юн",G69="юн",H69="юн",I69="юн",J69="юн",K69="юн",L69="юн",M69="юн",N69="юн",O69="юн",P69="юн",Q69="юн",R69="юн",S69="юн",T69="юн",U69="юн",V69="юн",W69="юн",X69="юн",Y69="юн",Z69="юн",AA69="юн"),"юн","б/р"))))))) -> юн
A70: Зайцев Даниил | B70: Речица | C70: 2000 | AB70: б/р
A71: Зайцев Данила | B71: Брестская область | C71: 2003 | R71: юн | X71: 3 | AB71: 3
A72: Зборовский Андрей | B72: Речица | C72: 2001 | I72: 1 юн | AB72: 1 юн
A73: Зюзин Иван | B73: Минск | C73: 2001 | F73: 2 | H73: 1 | Q73: 2 | Y73: юн | Z73: 2 | AB73: 1
A74: Зюзь Сергей | B74: Пуховичский р-н | C74: 2001 | F74: юн | Y74: 2 | AB74: 2
A75: Иванов Александр | B75: Минск | C75: 1992 | O75: 2 | P75: 2 | AB75: 2
A76: Изидеров Никита | B76: Полоцк | C76: 1994 | E76: КМС | G76: КМС | H76: КМС | V76: 2 | AB76: КМС
A77: Ильинков Виталик | B77: Минск | C77: 2003 | AB77: б/р
A78: Иосько Валик | B78: РЦЭК | C78: 2006 | AB78: б/р
A79: Казимирченко Антон | B79: РЦЭК | C79: 2004 | S79: 1 юн | T79: юн | W79: юн | X79: юн | AB79: 1 юн
A80: Кайдунов Антон | B80: ГОЦТиКДиМ Гомель | C80: 2004 | Z80: юн | AB80: юн
A81: Караваев Дмитрий | B81: Гомельская обл. | C81: 1993 | D81: КМС | E81: 1 | G81: КМС | K81: КМС | L81: 1 | U81: КМС | V81: 2 | AA81: 2 | AB81: КМС
A82: Карпов Роман | B82: MinskOnsight Мн. | C82: 1981 | L82: 2 | AB82: 2
A83: Качановский Евгений | B83: Хан-Тенгри | C83: 1983 | AB83: б/р
A84: Киселев Евгений | B84: Шклов | C84: 1999 | F84: 1 | G84: 2 | O84: 2 | AB84: 1
A85: Климович Алексей | B85: ЦТКиЭ Бобруйск | C85: 2008 | AB85: б/р
A86: Клюжев Александр | B86: Гомельская обл. | C86: 1997 | D86: КМС | E86: МС | F86: 1 | G86: КМС | K86: КМС | L86: КМС | O86: КМС | Q86: КМС | U86: КМС | V86: МС | AA86: МС | AB86: МС
A87: Козловский Петр | B87: Речица | C87: 1998 | AB87: б/р
A88: Косач Павел | B88: ГОЦТиКДиМ Гомель | C88: 2004 | M88: юн | R88: юн | S88: 1 юн | T88: 1 юн | AB88: 1 юн
A89: Красильников Виктор | B89: Минск | C89: 1998 | AB89: б/р
A90: Крез Владислав | B90: Пуховичский р-н | C90: 2001 | AB90: б/р
A91: Криворот Александр | B91: Минск | C91: 1997 | AB91: б/р
A92: Кудрявцев Александр | B92: ГОЦТиКДиМ Гомель | C92: 2004 | M92: юн | N92: 1 юн | R92: юн | S92: 1 юн | T92: юн | Y92: юн | AB92: 1 юн
A93: Кузан Никита | B93: Могилевская область | C93: 2004 | H93: юн | AB93: юн
A94: Кульченко Артем | B94: Пуховичский р-н | C94: 2008 | T94: юн | AB94: юн
A95: Кухоренко Максим | B95: Витебск | C95: 1985 | L95: 1 | AB95: 1
A96: Лашук Кирилл | B96: РЦЭК | C96: 2005 | AB96: б/р
A97: Липский Кирилл | B97: Минск | C97: 1986 | G97: 2 | O97: 3 | P97: 2 | Q97: 2 | AB97: 2
A98: Литвин Кирилл | B98: Брестская область | C98: 2002 | H98: 3 | Y98: 3 | Z98: юн | AB98: 3
A99: Логунов Никита | B99: ДЮСШ «Омега» Гом. | C99: 1999 | D99: 1 | E99: КМС | F99: 1 | G99: КМС | L99: КМС | P99: КМС | U99: 1 | V99: КМС | AA99: КМС | AB99: КМС
A100: Ложкин Денис | B100: MinskOnsight Мн. | C100: 1983 | G100: 1 | L100: 1 | O100: 2 | AB100: 1
A101: Лопухов Глеб | B101: СШ № 1 г. Ветка | C101: 2003 | I101: 2 | J101: юн | M101: 1 юн | S101: 1 юн | T101: 1 юн | Y101: юн | Z101: юн | AB101: =IF(OR(D101="МС",E101="МС",F101="МС",G101="МС",H101="МС",I101="МС",J101="МС",K101="МС",L101="МС",M101="МС",N101="МС",O101="МС",P101="МС",Q101="МС",R101="МС",S101="МС",T101="МС",U101="МС",V101="МС",W101="МС",X101="МС",Y101="МС",Z101="МС",AA101="МС"),"МС",IF(OR(D101="КМС",E101="КМС",F101="КМС",G101="КМС",H101="КМС",I101="КМС",J101="КМС",K101="КМС",L101="КМС",M101="КМС",N101="КМС",O101="КМС",P101="КМС",Q101="КМС",R101="КМС",S101="КМС",T101="КМС",U101="КМС",V101="КМС",W101="КМС",X101="КМС",Y101="КМС",Z101="КМС",AA101="КМС"),"КМС",IF(OR(D101=1,E101=1,F101=1,G101=1,H101=1,I101=1,J101=1,K101=1,L101=1,M101=1,N101=1,O101=1,P101=1,Q101=1,R101=1,S101=1,T101=1,U101=1,V101=1,W101=1,X101=1,Y101=1,Z101=1,AA101=1),1,IF(OR(D101=2,E101=2,F101=2,G101=2,H101=2,I101=2,J101=2,K101=2,L101=2,M101=2,N101=2,O101=2,P101=2,Q101=2,R101=2,S101=2,T101=2,U101=2,V101=2,W101=2,X101=2,Y101=2,Z101=2,AA101=2),2,IF(OR(D101=3,E101=3,F101=3,G101=3,H101=3,I101=3,J101=3,K101=3,L101=3,M101=3,N101=3,O101=3,P101=3,Q101=3,R101=3,S101=3,T101=3,U101=3,V101=3,W101=3,X101=3,Y101=3,Z101=3,AA101=3),3,IF(OR(D101="1 юн",E101="1 юн",F101="1 юн",G101="1 юн",H101="1 юн",I101="1 юн",J101="1 юн",K101="1 юн",L101="1 юн",M101="1 юн",N101="1 юн",O101="1 юн",P101="1 юн",Q101="1 юн",R101="1 юн",S101="1 юн",T101="1 юн",U101="1 юн",V101="1 юн",W101="1 юн",X101="1 юн",Y101="1 юн",Z101="1 юн",AA101="1 юн"),"1 юн",IF(OR(D101="юн",E101="юн",F101="юн",G101="юн",H101="юн",I101="юн",J101="юн",K101="юн",L101="юн",M101="юн",N101="юн",O101="юн",P101="юн",Q101="юн",R101="юн",S101="юн",T101="юн",U101="юн",V101="юн",W101="юн",X101="юн",Y101="юн",Z101="юн",AA101="юн"),"юн","б/р"))))))) -> 2
A102: Лялюк Александр | B102: г. Витебск | C102: 1989 | U102: 2 | AB102: 2
A103: Магер Даниил | B103: Полоцк | C103: 1998 | E103: юн | AB103: юн
A104: Макаренко Виктор | B104: Калинковичи | C104: 2003 | M104: 2 | AB104: 2
A105: Максименя Александр | B105: Хан-Тенгри | C105: 1975 | G105: 1 | AB105: 1
A106: Максименя Денис | B106: Минск | C106: 1996 | G106: КМС | O106: 1 | P106: КМС | AA106: 1 | AB106: КМС
A107: Малаховский Александр | B107: Хан-Тенгри | C107: 1985 | E107: 1 | Q107: 1 | AA107: 1 | AB107: 1
A108: Мельченко Арсений | B108: РЦЭК | C108: 2005 | AB108: б/р
A109: Мертенс Андрей | B109: г. Витебск | C109: 1992 | U109: 3 | AB109: 3
A110: Миненко Игорь | B110: Хан-Тенгри | C110: 1982 | G110: 2 | AB110: 2
A111: Мишкин Данила | B111: Брестская область | C111: 2004 | R111: юн | X111: юн | AB111: юн
A112: Мокеев Алексей | B112: Пуховичский р-н | C112: 2002 | N112: юн | AB112: юн
A113: Морозов Игорь | B113: Хан-Тенгри | C113: 1970 | AB113: б/р
A114: Морозов Юрий | B114: Хан-Тенгри | C114: 1992 | G114: КМС | Q114: 2 | AA114: 1 | AB114: КМС
A115: Мостков Слава | B115: Минск | C115: 2006 | X115: юн | AB115: юн
A116: Найденшев Владимир | B116: Пуховичский р-н | C116: 2002 | H116: 3 | N116: юн | R116: 2 | S116: юн | T116: 1 юн | AB116: 2
A117: Насиров Ренат | B117: ГОЦТиКДиМ Гомель | C117: 2004 | N117: юн | AB117: юн
A118: Нестеренко Егор | B118: ДЮСШ «Омега» Гом. | C118: 2003 | M118: юн | AB118: юн
A119: Никипелов Вадим | B119: Речица | C119: 1998 | AB119: б/р
A120: Никифоровец Андрей | B120: Минск | C120: 1974 | D120: 1 | E120: МС | K120: 1 | L120: КМС | O120: КМС | Q120: 1 | V120: МС | AA120: МС | AB120: МС
A121: Никифоровец Максим | B121: Минск | C121: 1997 | D121: 2 | E121: 2 | F121: 1 | G121: КМС | P121: КМС | Q121: КМС | AA121: КМС | AB121: КМС
A122: Никоноров Дмитрий | B122: Пуховичский р-н | C122: 1997 | E122: 1 | F122: 1 | G122: КМС | P122: 1 | Q122: 1 | AA122: 1 | AB122: КМС
A123: Оверчук Даниил | B123: Речица | C123: 2001 | I123: 1 юн | J123: 1 юн | M123: юн | P123: юн | AB123: 1 юн
A124: Осененко Василий | B124: Хан-Тенгри | C124: 1987 | AB124: б/р
A125: Остроухов Егор | B125: ПРЦДиМ Полоцк | C125: 1973 | E125: 2 | G125: 1 | AB125: 1
A126: Пагудо Евгений | B126: Минск | C126: 2002 | H126: 3 | I126: 1 юн | AB126: 3
A127: Пастухов Никита | B127: Пуховичский р-н | C127: 2000 | AB127: б/р
A128: Пауля Павел | B128: Минск | C128: 2000 | AB128: б/р
A129: Пахомов Александр | B129: Бобруйск | C129: 1983 | G129: КМС | O129: 1 | P129: 1 | AA129: 1 | AB129: КМС
A130: Петровский Максим | B130: Минск | C130: 1987 | AB130: б/р
A131: Пирожков Денис | B131: ГОЦТиКДиМ Гомель | C131: 1998 | AB131: б/р
A132: Писарев Кирилл | B132: ДЮСШ «Омега» Гом. | C132: 2001 | H132: 1 | I132: 2 | M132: 2 | N132: юн | P132: 2 | Y132: 2 | Z132: 3 | AB132: 1
A133: Подплетько Александр | B133: Речица | C133: 2001 | AB133: =IF(OR(D133="МС",E133="МС",F133="МС",G133="МС",H133="МС",I133="МС",J133="МС",K133="МС",L133="МС",M133="МС",N133="МС",O133="МС",P133="МС",Q133="МС",R133="МС",S133="МС",T133="МС",U133="МС",V133="МС",W133="МС",X133="МС",Y133="МС",Z133="МС",AA133="МС"),"МС",IF(OR(D133="КМС",E133="КМС",F133="КМС",G133="КМС",H133="КМС",I133="КМС",J133="КМС",K133="КМС",L133="КМС",M133="КМС",N133="КМС",O133="КМС",P133="КМС",Q133="КМС",R133="КМС",S133="КМС",T133="КМС",U133="КМС",V133="КМС",W133="КМС",X133="КМС",Y133="КМС",Z133="КМС",AA133="КМС"),"КМС",IF(OR(D133=1,E133=1,F133=1,G133=1,H133=1,I133=1,J133=1,K133=1,L133=1,M133=1,N133=1,O133=1,P133=1,Q133=1,R133=1,S133=1,T133=1,U133=1,V133=1,W133=1,X133=1,Y133=1,Z133=1,AA133=1),1,IF(OR(D133=2,E133=2,F133=2,G133=2,H133=2,I133=2,J133=2,K133=2,L133=2,M133=2,N133=2,O133=2,P133=2,Q133=2,R133=2,S133=2,T133=2,U133=2,V133=2,W133=2,X133=2,Y133=2,Z133=2,AA133=2),2,IF(OR(D133=3,E133=3,F133=3,G133=3,H133=3,I133=3,J133=3,K133=3,L133=3,M133=3,N133=3,O133=3,P133=3,Q133=3,R133=3,S133=3,T133=3,U133=3,V133=3,W133=3,X133=3,Y133=3,Z133=3,AA133=3),3,IF(OR(D133="1 юн",E133="1 юн",F133="1 юн",G133="1 юн",H133="1 юн",I133="1 юн",J133="1 юн",K133="1 юн",L133="1 юн",M133="1 юн",N133="1 юн",O133="1 юн",P133="1 юн",Q133="1 юн",R133="1 юн",S133="1 юн",T133="1 юн",U133="1 юн",V133="1 юн",W133="1 юн",X133="1 юн",Y133="1 юн",Z133="1 юн",AA133="1 юн"),"1 юн",IF(OR(D133="юн",E133="юн",F133="юн",G133="юн",H133="юн",I133="юн",J133="юн",K133="юн",L133="юн",M133="юн",N133="юн",O133="юн",P133="юн",Q133="юн",R133="юн",S133="юн",T133="юн",U133="юн",V133="юн",W133="юн",X133="юн",Y133="юн",Z133="юн",AA133="юн"),"юн","б/р"))))))) -> б/р
A134: Покаместов Илья | B134: Витебск | C134: 1977 | D134: 2 | K134: 1 | AB134: 1
A135: Пригодич Андрей | B135: Минск | C135: 1987 | AB135: б/р
A136: Пристромов Антон | B136: ДЮСШ «Омега» Гом. | C136: 1988 | D136: 2 | E136: КМС | G136: 1 | AB136: КМС
A137: Пуйто Антон | B137: ГОЦТиКДиМ Гомель | C137: 1998 | D137: 2 | E137: 2 | F137: 1 | G137: 1 | K137: 1 | L137: 1 | O137: 3 | P137: 3 | AB137: 1
A138: Раманюга Максим | B138: т/к "Кадр" Речица | C138: 2003 | M138: юн | AB138: юн
A139: Рожнов Владимир | B139: Могилевская область | C139: 1999 | F139: 2 | AB139: 2
A140: Рубенок Артем | B140: Витебск | C140: 1986 | L140: 1 | AB140: 1
A141: Рудавский Никита | B141: Могилевская область | C141: 1999 | F141: 2 | AB141: 2
A142: Руденко Вадим | B142: ДЮСШ «Омега» Гом. | C142: 2006 | J142: 1 юн | R142: 1 юн | S142: 1 юн | T142: 1 юн | W142: 1 юн | X142: 2 | AB142: 2
A143: Рыбчинский Антон | B143: Брестская область | C143: 2005 | R143: юн | X143: 1 юн | AB143: 1 юн
A144: Самухин Василий | B144: Минск | C144: 2000 | Q144: 3 | AB144: 3
A145: Сатишур Антон | B145: Брестская область | C145: 1999 | AB145: б/р
A146: Саунин Кирилл | B146: Пинск | C146: 1989 | O146: 1 | Q146: 1 | AB146: 1
A147: Сацута Павел | B147: Пуховичский р-н | C147: 2005 | R147: юн | S147: юн | T147: 1 юн | AB147: 1 юн
A148: Свешников Герман | B148: РЦЭК | C148: 2005 | AB148: б/р
A149: Свито Иван | B149: Хан-Тенгри | C149: 1982 | G149: 1 | O149: 2 | AB149: 1
A150: Сердаков Илья | B150: ГОЦТиКДиМ Гомель | C150: 1999 | D150: 2 | E150: 2 | F150: 1 | G150: 1 | K150: 1 | L150: КМС | U150: 2 | V150: 2 | AB150: КМС
A151: Сивуха Максим | B151: Речица | C151: 2003 | I151: 1 юн | P151: юн | AB151: 1 юн
A152: Сидорейко Артем | B152: ГОЦТиКДиМ Гомель | C152: 1996 | AB152: б/р
A153: Силков Михаил | B153: МогилёвскийОЦФВиС | C153: 1997 | F153: 2 | AB153: 2
A154: Синяцкий Олег | B154: СШ № 1 г. Ветка | C154: 2008 | S154: юн | AB154: юн
A155: Смирнов Владимир | B155: РЦЭК | C155: 2005 | AB155: б/р
A156: Смирнов Даник | B156: РЦЭК | C156: 2002 | R156: 3 | X156: 2 | AB156: 2
A157: Смолюга Анатолий | B157: т/к "Кадр" Речица | C157: 2005 | T157: юн | AB157: юн
A158: Соковых Евгений | B158: Хан-Тенгри | C158: 1988 | G158: КМС | AA158: 1 | AB158: КМС
A159: Соколовский Даник | B159: РЦЭК | C159: 2006 | R159: юн | S159: юн | T159: 1 юн | X159: юн | AB159: 1 юн
A160: Соломкин Александр | B160: ГОЦТиКДиМ Гомель | C160: 2005 | H160: юн | I160: 1 юн | J160: юн | AB160: 1 юн
A161: Сомов Денис | B161: Речица | C161: 2003 | I161: 1 юн | AB161: 1 юн
A162: Сорокин Андрей | B162: МогилёвскийОЦФВиС | C162: 1998 | D162: 2 | E162: 2 | AB162: 2
A163: Сосновский Никита | B163: Пуховичский р-н | C163: 2005 | H163: 1 юн | M163: 2 | N163: 2 | R163: 2 | S163: 1 юн | T163: 1 юн | X163: 2 | Z163: юн | AB163: 2
A164: Станков Глеб | B164: Минск | C164: 2005 | W164: юн | AB164: юн
A165: Стариков Павел | B165: С/к «Торпедо» Мг. | C165: 1996 | G165: 2 | AA165: 2 | AB165: =IF(OR(D165="МС",E165="МС",F165="МС",G165="МС",H165="МС",I165="МС",J165="МС",K165="МС",L165="МС",M165="МС",N165="МС",O165="МС",P165="МС",Q165="МС",R165="МС",S165="МС",T165="МС",U165="МС",V165="МС",W165="МС",X165="МС",Y165="МС",Z165="МС",AA165="МС"),"МС",IF(OR(D165="КМС",E165="КМС",F165="КМС",G165="КМС",H165="КМС",I165="КМС",J165="КМС",K165="КМС",L165="КМС",M165="КМС",N165="КМС",O165="КМС",P165="КМС",Q165="КМС",R165="КМС",S165="КМС",T165="КМС",U165="КМС",V165="КМС",W165="КМС",X165="КМС",Y165="КМС",Z165="КМС",AA165="КМС"),"КМС",IF(OR(D165=1,E165=1,F165=1,G165=1,H165=1,I165=1,J165=1,K165=1,L165=1,M165=1,N165=1,O165=1,P165=1,Q165=1,R165=1,S165=1,T165=1,U165=1,V165=1,W165=1,X165=1,Y165=1,Z165=1,AA165=1),1,IF(OR(D165=2,E165=2,F165=2,G165=2,H165=2,I165=2,J165=2,K165=2,L165=2,M165=2,N165=2,O165=2,P165=2,Q165=2,R165=2,S165=2,T165=2,U165=2,V165=2,W165=2,X165=2,Y165=2,Z165=2,AA165=2),2,IF(OR(D165=3,E165=3,F165=3,G165=3,H165=3,I165=3,J165=3,K165=3,L165=3,M165=3,N165=3,O165=3,P165=3,Q165=3,R165=3,S165=3,T165=3,U165=3,V165=3,W165=3,X165=3,Y165=3,Z165=3,AA165=3),3,IF(OR(D165="1 юн",E165="1 юн",F165="1 юн",G165="1 юн",H165="1 юн",I165="1 юн",J165="1 юн",K165="1 юн",L165="1 юн",M165="1 юн",N165="1 юн",O165="1 юн",P165="1 юн",Q165="1 юн",R165="1 юн",S165="1 юн",T165="1 юн",U165="1 юн",V165="1 юн",W165="1 юн",X165="1 юн",Y165="1 юн",Z165="1 юн",AA165="1 юн"),"1 юн",IF(OR(D165="юн",E165="юн",F165="юн",G165="юн",H165="юн",I165="юн",J165="юн",K165="юн",L165="юн",M165="юн",N165="юн",O165="юн",P165="юн",Q165="юн",R165="юн",S165="юн",T165="юн",U165="юн",V165="юн",W165="юн",X165="юн",Y165="юн",Z165="юн",AA165="юн"),"юн","б/р"))))))) -> 2
A166: Степаненко Олег | B166: Гомельская обл. | C166: 2001 | I166: 1 юн | M166: юн | P166: 1 юн | Q166: юн | AB166: 1 юн
A167: Стрельский Максим | B167: Пуховичский р-н | C167: 1998 | AB167: б/р
A168: Стрельченя Максим | B168: Фрунзенский ФОЦ | C168: 2006 | AB168: б/р
A169: Стрижевич Сергей | B169: РЦЭК | C169: 2006 | M169: юн | N169: юн | R169: 1 юн | S169: 1 юн | T169: юн | W169: 1 юн | X169: 1 юн | AB169: 1 юн
A170: Супей Степан | B170: ГОЦТиКДиМ Гомель | C170: 2007 | S170: юн | T170: юн | AB170: юн
A171: Сухотский Дмитрий | B171: Минск | C171: 1997 | F171: 3 | AB171: 3
A172: Сычев Николай | B172: Гомельская обл. | C172: 1978 | G172: 1 | AB172: 1
A173: Талдыкин Илья | B173: ДЮСШ «Омега» Гом. | C173: 2000 | F173: 2 | P173: 2 | V173: 2 | AB173: 2
A174: Тарасенко Владислав | B174: Пуховичский р-н | C174: 1995 | G174: КМС | AA174: КМС | AB174: КМС
A175: Таршис Иван | B175: ГОЦТиКДиМ Гомель | C175: 1998 | F175: 1 | AB175: 1
A176: Теклин Феликс | B176: ДЮСШ «Омега» Гом. | C176: 2005 | AB176: б/р
A177: Толкачев Илья | B177: ЦТКиЭ Бобруйск | C177: 2006 | R177: юн | AB177: юн
A178: Тэнц Константин | B178: т/к "Кадр" Речица | C178: 2003 | M178: юн | N178: юн | S178: юн | AB178: юн
A179: Федоринчик Антон | B179: Пуховичский р-н | C179: 2002 | M179: юн | N179: 1 юн | R179: 2 | S179: 1 юн | T179: 2 | X179: 2 | AB179: 2
A180: Федоров Игорь | B180: Хан-Тенгри | C180: 1977 | G180: 1 | AB180: 1
A181: Федотов Сергей | B181: Бобруйск | C181: 1990 | G181: КМС | O181: КМС | P181: КМС | AB181: КМС
A182: Фурик Александр | B182: ЦТ Слуцк | C182: 2004 | R182: юн | AB182: юн
A183: Харчик Максим | B183: Брестская область | C183: 1998 | D183: юн | E183: 3 | F183: юн | AB183: 3
A184: Церлюкевич Влад | B184: РЦЭК | C184: 2006 | X184: юн | AB184: юн
A185: Циркунов Александр | B185: Витебск | C185: 1988 | G185: 2 | AB185: 2
A186: Цымбалист Данила | B186: Брестская область | C186: 2001 | H186: юн | AB186: юн
A187: Ченуша Алексей | B187: Хан-Тенгри | C187: 1969 | G187: 1 | L187: 1 | AB187: 1
A188: Чернявский Артем | B188: Витебск | C188: 1987 | AB188: б/р
A189: Чешун Иван | B189: ГОЦТиКДиМ Гомель | C189: 2004 | T189: юн | AB189: юн
A190: Шахэмиров Максим | B190: Пуховичский р-н | C190: 2003 | T190: юн | AB190: юн
A191: Шелкович Антон | B191: Минск | C191: 1986 | G191: 1 | AB191: 1
A192: Шиленок Артем | B192: т/к "Кадр" Речица | C192: 2004 | S192: юн | T192: юн | AB192: юн
A193: Шишко Даниил | B193: Фрунзенский ФОЦ | C193: 2002 | H193: юн | R193: 3 | AB193: 3
A194: Шишко Михаил | B194: Фрунзенский ФОЦ | C194: 2006 | R194: юн | X194: юн | AB194: юн
A195: Шишко Тимофей | B195: Фрунзенский ФОЦ | C195: 2004 | R195: юн | W195: юн | X195: юн | AB195: юн
A196: Шпиганович Данила | B196: Брестская область | C196: 2005 | H196: 1 юн | X196: 1 юн | Y196: юн | AB196: 1 юн
A197: Шпиганович Максим | B197: Брестская область | C197: 2001 | H197: юн | R197: 2 | Y197: 3 | Z197: юн | AB197: =IF(OR(D197="МС",E197="МС",F197="МС",G197="МС",H197="МС",I197="МС",J197="МС",K197="МС",L197="МС",M197="МС",N197="МС",O197="МС",P197="МС",Q197="МС",R197="МС",S197="МС",T197="МС",U197="МС",V197="МС",W197="МС",X197="МС",Y197="МС",Z197="МС",AA197="МС"),"МС",IF(OR(D197="КМС",E197="КМС",F197="КМС",G197="КМС",H197="КМС",I197="КМС",J197="КМС",K197="КМС",L197="КМС",M197="КМС",N197="КМС",O197="КМС",P197="КМС",Q197="КМС",R197="КМС",S197="КМС",T197="КМС",U197="КМС",V197="КМС",W197="КМС",X197="КМС",Y197="КМС",Z197="КМС",AA197="КМС"),"КМС",IF(OR(D197=1,E197=1,F197=1,G197=1,H197=1,I197=1,J197=1,K197=1,L197=1,M197=1,N197=1,O197=1,P197=1,Q197=1,R197=1,S197=1,T197=1,U197=1,V197=1,W197=1,X197=1,Y197=1,Z197=1,AA197=1),1,IF(OR(D197=2,E197=2,F197=2,G197=2,H197=2,I197=2,J197=2,K197=2,L197=2,M197=2,N197=2,O197=2,P197=2,Q197=2,R197=2,S197=2,T197=2,U197=2,V197=2,W197=2,X197=2,Y197=2,Z197=2,AA197=2),2,IF(OR(D197=3,E197=3,F197=3,G197=3,H197=3,I197=3,J197=3,K197=3,L197=3,M197=3,N197=3,O197=3,P197=3,Q197=3,R197=3,S197=3,T197=3,U197=3,V197=3,W197=3,X197=3,Y197=3,Z197=3,AA197=3),3,IF(OR(D197="1 юн",E197="1 юн",F197="1 юн",G197="1 юн",H197="1 юн",I197="1 юн",J197="1 юн",K197="1 юн",L197="1 юн",M197="1 юн",N197="1 юн",O197="1 юн",P197="1 юн",Q197="1 юн",R197="1 юн",S197="1 юн",T197="1 юн",U197="1 юн",V197="1 юн",W197="1 юн",X197="1 юн",Y197="1 юн",Z197="1 юн",AA197="1 юн"),"1 юн",IF(OR(D197="юн",E197="юн",F197="юн",G197="юн",H197="юн",I197="юн",J197="юн",K197="юн",L197="юн",M197="юн",N197="юн",O197="юн",P197="юн",Q197="юн",R197="юн",S197="юн",T197="юн",U197="юн",V197="юн",W197="юн",X197="юн",Y197="юн",Z197="юн",AA197="юн"),"юн","б/р"))))))) -> 2
A198: Шульпейкин Влад | B198: Калинковичи | C198: 2004 | M198: юн | AB198: юн
A199: Юнгин Кирилл | B199: РЦЭК | C199: 2006 | W199: 1 юн | X199: юн | AB199: 1 юн
A200: Юрковец Евгений | B200: Могилевская область | C200: 2000 | H200: 2 | Y200: 3 | AB200: 2
A201: Юхнюк Вячеслав | B201: Брестская область | C201: 1999 | F201: 3 | AB201: 3
... 3 more rows

Sheet разряды ж.
D2: 2013 | F2: 2014 | P2: 2015 | Y2: 2013
D3: Чемпионат и первенство Беларуси, Витебск, 5-9.12.2013 | F3: Первенство Беларуси, Минск, 21-22.02.2014 | G3: Чемпионат Беларуси, Минск, 21-23.02.2014 | H3: Первенство Беларуси, Минск, 21-23.03.2014 | I3: Первенство Гомеля, 4-6.04.2014 | K3: Кубок Беларуси, Витебск, 12-13.04.2014 | M3: Первенство Беларуси, Гомель, 7-8.11.2014 | O3: Кубок Беларуси, Пинск, 22-23.11.2014 | P3: Первенство Гом. обл., 31.01-1.02.1015 | Q3: Чемпионат Беларуси, Минск, 27.02-1.03.2015 | R3: Первенство Беларуси, Минск, 21-22.03.2015 | S3: Первенство Гомеля, 3-5.04.2015 | U3: Чемпионат и первенство Беларуси, Витебск, 17-20.04.2015 | W3: Первенство Минска, Минск, 16-17.05.2015 | Y3: Первенство Беларуси, Пинск, 21-22.11.2013 | AA3: Кубок Беларуси, Пинск, 22-24.11.2013 | AB3: Текущий разряд
A4: Фамилия, Имя | B4: команда | C4: г.р. | D4: С | E4: Т | F4: Б | G4: Б | H4: Б | I4: С | J4: Т | K4: С | L4: Т | M4: С | N4: Т | O4: Б | P4: Б | Q4: Б | R4: Б | S4: С | T4: Т | U4: С | V4: Т | W4: С | X4: Т | Y4: Т | Z4: С | AA4: Б
A5: Авило Вера | B5: РЦЭК | C5: 2006 | D5: разряды не выполнялись из-за малого количества участников | F5: разряды не выполнялись из-за малого количества участников | K5: разряды не выполнялись из-за малого количества участников | L5: разряды не выполнялись из-за малого количества участников | U5: разряды не выполнялись из-за малого количества участников | V5: разряды не выполнялись из-за малого количества участников | W5: разряды не выполнялись из-за малого количества участников | X5: разряды не выполнялись из-за малого количества участников | AB5: =IF(OR(D5="МС",E5="МС",F5="МС",G5="МС",H5="МС",I5="МС",J5="МС",K5="МС",L5="МС",M5="МС",N5="МС",O5="МС",P5="МС",Q5="МС",R5="МС",S5="МС",T5="МС",U5="МС",V5="МС",W5="МС",X5="МС",Y5="МС",Z5="МС",AA5="МС"),"МС",IF(OR(D5="КМС",E5="КМС",F5="КМС",G5="КМС",H5="КМС",I5="КМС",J5="КМС",K5="КМС",L5="КМС",M5="КМС",N5="КМС",O5="КМС",P5="КМС",Q5="КМС",R5="КМС",S5="КМС",T5="КМС",U5="КМС",V5="КМС",W5="КМС",X5="КМС",Y5="КМС",Z5="КМС",AA5="КМС"),"КМС",IF(OR(D5=1,E5=1,F5=1,G5=1,H5=1,I5=1,J5=1,K5=1,L5=1,M5=1,N5=1,O5=1,P5=1,Q5=1,R5=1,S5=1,T5=1,U5=1,V5=1,W5=1,X5=1,Y5=1,Z5=1,AA5=1),1,IF(OR(D5=2,E5=2,F5=2,G5=2,H5=2,I5=2,J5=2,K5=2,L5=2,M5=2,N5=2,O5=2,P5=2,Q5=2,R5=2,S5=2,T5=2,U5=2,V5=2,W5=2,X5=2,Y5=2,Z5=2,AA5=2),2,IF(OR(D5=3,E5=3,F5=3,G5=3,H5=3,I5=3,J5=3,K5=3,L5=3,M5=3,N5=3,O5=3,P5=3,Q5=3,R5=3,S5=3,T5=3,U5=3,V5=3,W5=3,X5=3,Y5=3,Z5=3,AA5=3),3,IF(OR(D5="1 юн",E5="1 юн",F5="1 юн",G5="1 юн",H5="1 юн",I5="1 юн",J5="1 юн",K5="1 юн",L5="1 юн",M5="1 юн",N5="1 юн",O5="1 юн",P5="1 юн",Q5="1 юн",R5="1 юн",S5="1 юн",T5="1 юн",U5="1 юн",V5="1 юн",W5="1 юн",X5="1 юн",Y5="1 юн",Z5="1 юн",AA5="1 юн"),"1 юн",IF(OR(D5="юн",E5="юн",F5="юн",G5="юн",H5="юн",I5="юн",J5="юн",K5="юн",L5="юн",M5="юн",N5="юн",O5="юн",P5="юн",Q5="юн",R5="юн",S5="юн",T5="юн",U5="юн",V5="юн",W5="юн",X5="юн",Y5="юн",Z5="юн",AA5="юн"),"юн","б/р"))))))) -> б/р
A6: Андреева Елена | B6: Гомельская обл. | C6: 1982 | G6: КМС | O6: 2 | AA6: 2 | AB6: =IF(OR(D6="МС",E6="МС",F6="МС",G6="МС",H6="МС",I6="МС",J6="МС",K6="МС",L6="МС",M6="МС",N6="МС",O6="МС",P6="МС",Q6="МС",R6="МС",S6="МС",T6="МС",U6="МС",V6="МС",W6="МС",X6="МС",Y6="МС",Z6="МС",AA6="МС"),"МС",IF(OR(D6="КМС",E6="КМС",F6="КМС",G6="КМС",H6="КМС",I6="КМС",J6="КМС",K6="КМС",L6="КМС",M6="КМС",N6="КМС",O6="КМС",P6="КМС",Q6="КМС",R6="КМС",S6="КМС",T6="КМС",U6="КМС",V6="КМС",W6="КМС",X6="КМС",Y6="КМС",Z6="КМС",AA6="КМС"),"КМС",IF(OR(D6=1,E6=1,F6=1,G6=1,H6=1,I6=1,J6=1,K6=1,L6=1,M6=1,N6=1,O6=1,P6=1,Q6=1,R6=1,S6=1,T6=1,U6=1,V6=1,W6=1,X6=1,Y6=1,Z6=1,AA6=1),1,IF(OR(D6=2,E6=2,F6=2,G6=2,H6=2,I6=2,J6=2,K6=2,L6=2,M6=2,N6=2,O6=2,P6=2,Q6=2,R6=2,S6=2,T6=2,U6=2,V6=2,W6=2,X6=2,Y6=2,Z6=2,AA6=2),2,IF(OR(D6=3,E6=3,F6=3,G6=3,H6=3,I6=3,J6=3,K6=3,L6=3,M6=3,N6=3,O6=3,P6=3,Q6=3,R6=3,S6=3,T6=3,U6=3,V6=3,W6=3,X6=3,Y6=3,Z6=3,AA6=3),3,IF(OR(D6="1 юн",E6="1 юн",F6="1 юн",G6="1 юн",H6="1 юн",I6="1 юн",J6="1 юн",K6="1 юн",L6="1 юн",M6="1 юн",N6="1 юн",O6="1 юн",P6="1 юн",Q6="1 юн",R6="1 юн",S6="1 юн",T6="1 юн",U6="1 юн",V6="1 юн",W6="1 юн",X6="1 юн",Y6="1 юн",Z6="1 юн",AA6="1 юн"),"1 юн",IF(OR(D6="юн",E6="юн",F6="юн",G6="юн",H6="юн",I6="юн",J6="юн",K6="юн",L6="юн",M6="юн",N6="юн",O6="юн",P6="юн",Q6="юн",R6="юн",S6="юн",T6="юн",U6="юн",V6="юн",W6="юн",X6="юн",Y6="юн",Z6="юн",AA6="юн"),"юн","б/р"))))))) -> КМС
A7: Андренко Алина | B7: ГОЦТиКДиМ | C7: 1998 | AB7: б/р
A8: Астапова Анастасия | B8: СШ №1 г. Ветка | C8: 2002 | I8: 1 юн | AB8: 1 юн
A9: Баева Диана | B9: МогилёвскийОЦФВиС | C9: 2000 | G9: 2 | O9: 3 | Y9: 3 | Z9: 2 | AB9: 2
A10: Бардашевич Ульяна | B10: ГОЦТиКДиМ | C10: 2003 | M10: юн | AB10: юн
A11: Болсун Софья | B11: ДЮСШ "Омега" | C11: 1998 | AB11: б/р
A12: Боярина Марго | B12: РЦЭК | C12: 2006 | AB12: б/р
A13: Бурая Альбина | B13: РЦЭК | C13: 2002 | H13: юн | M13: 1 юн | N13: юн | AB13: 1 юн
A14: Вежновец Екатерина | B14: Минск | P14: 3 | AB14: 3
A15: Вербанович Маргарита | B15: Брестская область | C15: 1999 | AB15: б/р
A16: Веретенникова Екатерина | B16: Минск | C16: 1989 | AB16: б/р
A17: Веретенникова Елена | B17: Минск | C17: 1991 | G17: КМС | P17: 1 | Q17: 1 | AA17: 1 | AB17: КМС
A18: Верниковская Мария | B18: Пуховичский р-н | C18: 2000 | G18: 2 | P18: 3 | Q18: 2 | Y18: 2 | Z18: 3 | AB18: 2
A19: Верхоглядова Елена | B19: Хан-Тенгри | C19: 1987 | G19: 1 | AB19: 1
A20: Галуц Мария | B20: Фрунзенский ФОЦ | C20: 2004 | AB20: б/р
A21: Ганчаревич Екатерина | B21: Пуховичский р-н | C21: 2006 | AB21: б/р
A22: Гатальская Елизавета | B22: СШ №1 г. Ветка | C22: 2004 | M22: юн | R22: юн | S22: 1 юн | T22: юн | AB22: 1 юн
A23: Гацулина Анастасия | B23: ГОЦТиКДиМ | C23: 1997 | AB23: б/р
A24: Горбатовская Диана | B24: ГОЦТиКДиМ | C24: 2003 | M24: юн | AB24: юн
A25: Громыко Анастасия | B25: СШ №1 г. Ветка | C25: 2004 | R25: юн | S25: 1 юн | T25: 1 юн | AB25: 1 юн
A26: Гунько Наталья | B26: ЦТиКДМ г. Пинска | C26: 2000 | Y26: юн | Z26: 3 | AB26: 3
A27: Данченко Дарья | B27: Хойники | C27: 1999 | AB27: б/р
A28: Денисенко Мария | B28: Речица | C28: 2000 | J28: юн | AB28: юн
A29: Ермохина Анна | B29: РЦЭК | C29: 2003 | H29: юн | I29: юн | J29: юн | M29: 1 юн | N29: юн | Y29: юн | Z29: 1 юн | AB29: 1 юн
A30: Ермохина Дарья | B30: РЦЭК | C30: 1999 | I30: юн | J30: 1 юн | AB30: 1 юн
A31: Жель Мария | B31: Фрунзенский ФОЦ | C31: 2006 | AB31: б/р
A32: Жуковская Кристина | B32: СШ №1 г. Ветка | C32: 1998 | AB32: б/р
A33: Запорожченко Надежда | B33: РЦЭК | C33: 2005 | H33: юн | J33: юн | R33: юн | S33: юн | T33: юн | AB33: юн
A34: Зюзина Елена | B34: Хан-Тенгри | C34: 1978 | G34: 1 | Q34: 2 | AA34: 2 | AB34: 1
A35: Калиновская Кристина | B35: Брестская область | C35: 2003 | Z35: юн | AB35: юн
A36: Канашкова Арина | B36: Могилевская область | C36: 2001 | H36: юн | AB36: юн
A37: Качан Ирина | B37: Брестская область | C37: 2000 | Y37: юн | Z37: 2 | AB37: 2
A38: Кечик Юлия | B38: Хан-Тенгри | C38: 1987 | AB38: б/р
A39: Кобринец Карина | B39: ЦТиКДМ г. Пинска | C39: 2000 | Z39: юн | AB39: юн
A40: Ковальская Ксения | B40: ЦТ Слуцк | C40: 2004 | R40: юн | AB40: юн
A41: Кондратюк Дарья | B41: Брестская область | C41: 2003 | H41: юн | Y41: юн | Z41: юн | AB41: юн
A42: Конончук Ирина | B42: Брестская область | C42: 2001 | AB42: б/р
A43: Коноплева Марина | B43: Гомельская обл. | C43: 2001 | H43: 2 | I43: 1 юн | J43: 2 | M43: 2 | N43: 2 | P43: юн | Y43: 3 | Z43: юн | AB43: 2
A44: Копусова Ксения | B44: Минск | C44: 2001 | I44: 1 юн | J44: 1 юн | M44: 2 | N44: 2 | Y44: 3 | Z44: юн | AB44: 2
A45: Кореневская Вероника | B45: Минск | C45: 1997 | E45: 3 | AA45: 2 | AB45: 2
A46: Кузина Юлия | B46: Бобруйск | C46: 1999 | E46: 2 | G46: 1 | O46: 1 | AA46: 2 | AB46: 1
A47: Кузичева Таисия | B47: ГОЦТиКДиМ | C47: 2000 | I47: 2 | J47: 1 юн | Z47: юн | AB47: 2
A48: Кукевич Полина | B48: РЦЭК | C48: 2003 | H48: юн | J48: юн | M48: 2 | N48: юн | Y48: юн | AB48: 2
A49: Кулешова Юлия | B49: Могилевская область | C49: 2001 | H49: 3 | AB49: 3
A50: Леоненко Татьяна | B50: Хойники | C50: 1999 | AB50: б/р
A51: Липкович Мария | B51: РЦЭК | C51: 2005 | H51: 1 юн | J51: 1 юн | N51: 2 | R51: 1 юн | S51: 2 | T51: 2 | AB51: 2
A52: Лясович Наталья | B52: Витебск | C52: 1985 | G52: 1 | O52: 1 | P52: 3 | Q52: 2 | AB52: 1
A53: Малыженкова Лариса | B53: Минск | C53: 1975 | E53: 1 | G53: КМС | Q53: КМС | AA53: КМС | AB53: КМС
A54: Марковец Екатерина | B54: Брестская область | C54: 2004 | R54: юн | AB54: юн
A55: Матвеева Юлия | B55: ГОЦТиКДиМ | C55: 2005 | S55: юн | T55: юн | AB55: юн
A56: Мельник Яна | B56: ЦТ Слуцк | C56: 2005 | AB56: б/р
A57: Мигунова Алена | B57: СШ №1 г. Ветка | C57: 2001 | J57: юн | M57: юн | AB57: юн
A58: Мисюкевич Александра | B58: Минск | C58: 1994 | G58: 2 | P58: 2 | AB58: 2
A59: Мороз Юля | B59: ЦТ Слуцк | C59: 2003 | AB59: б/р
A60: Нажига Кристина | B60: Хойники | C60: 1998 | AB60: б/р
A61: Нестереня Виолетта | B61: Пуховичский р-н | C61: 2004 | AB61: б/р
A62: Нечесова Виталина | B62: Речица | C62: 1998 | AB62: б/р
A63: Никифоровец Екатерина | B63: Минск | C63: 1973 | AB63: б/р
A64: Никифоровец Юлия | B64: РЦЭК | C64: 2004 | H64: 1 юн | J64: 1 юн | M64: 1 юн | N64: 1 юн | P64: 1 юн | R64: 2 | S64: 1 юн | T64: 1 юн | Y64: 1 юн | Z64: юн | AB64: 2
A65: Огарко Екатерина | B65: Брестская область | C65: 2002 | Y65: юн | AB65: юн
A66: Осипенко Анастасия | B66: СШ №1 г. Ветка | C66: 2002 | H66: 3 | I66: юн | J66: юн | Y66: юн | AB66: 3
A67: Пагудо Екатерина | B67: Минск | C67: 2000 | I67: 2 | J67: 1 юн | Y67: 2 | Z67: 3 | AB67: 2
A68: Потапович Александрина | B68: Фрунзенский ФОЦ | C68: 2003 | H68: 1 юн | J68: юн | AB68: 1 юн
A69: Причинич Евгения | B69: ГОЦТиКДиМ | C69: 1990 | AB69: б/р
A70: Прокошина Алеся | B70: СШ №1 г. Ветка | C70: 2002 | H70: 3 | I70: 2 | J70: 2 | M70: 1 юн | N70: 1 юн | P70: 1 юн | AB70: =IF(OR(D70="МС",E70="МС",F70="МС",G70="МС",H70="МС",I70="МС",J70="МС",K70="МС",L70="МС",M70="МС",N70="МС",O70="МС",P70="МС",Q70="МС",R70="МС",S70="МС",T70="МС",U70="МС",V70="МС",W70="МС",X70="МС",Y70="МС",Z70="МС",AA70="МС"),"МС",IF(OR(D70="КМС",E70="КМС",F70="КМС",G70="КМС",H70="КМС",I70="КМС",J70="КМС",K70="КМС",L70="КМС",M70="КМС",N70="КМС",O70="КМС",P70="КМС",Q70="КМС",R70="КМС",S70="КМС",T70="КМС",U70="КМС",V70="КМС",W70="КМС",X70="КМС",Y70="КМС",Z70="КМС",AA70="КМС"),"КМС",IF(OR(D70=1,E70=1,F70=1,G70=1,H70=1,I70=1,J70=1,K70=1,L70=1,M70=1,N70=1,O70=1,P70=1,Q70=1,R70=1,S70=1,T70=1,U70=1,V70=1,W70=1,X70=1,Y70=1,Z70=1,AA70=1),1,IF(OR(D70=2,E70=2,F70=2,G70=2,H70=2,I70=2,J70=2,K70=2,L70=2,M70=2,N70=2,O70=2,P70=2,Q70=2,R70=2,S70=2,T70=2,U70=2,V70=2,W70=2,X70=2,Y70=2,Z70=2,AA70=2),2,IF(OR(D70=3,E70=3,F70=3,G70=3,H70=3,I70=3,J70=3,K70=3,L70=3,M70=3,N70=3,O70=3,P70=3,Q70=3,R70=3,S70=3,T70=3,U70=3,V70=3,W70=3,X70=3,Y70=3,Z70=3,AA70=3),3,IF(OR(D70="1 юн",E70="1 юн",F70="1 юн",G70="1 юн",H70="1 юн",I70="1 юн",J70="1 юн",K70="1 юн",L70="1 юн",M70="1 юн",N70="1 юн",O70="1 юн",P70="1 юн",Q70="1 юн",R70="1 юн",S70="1 юн",T70="1 юн",U70="1 юн",V70="1 юн",W70="1 юн",X70="1 юн",Y70="1 юн",Z70="1 юн",AA70="1 юн"),"1 юн",IF(OR(D70="юн",E70="юн",F70="юн",G70="юн",H70="юн",I70="юн",J70="юн",K70="юн",L70="юн",M70="юн",N70="юн",O70="юн",P70="юн",Q70="юн",R70="юн",S70="юн",T70="юн",U70="юн",V70="юн",W70="юн",X70="юн",Y70="юн",Z70="юн",AA70="юн"),"юн","б/р"))))))) -> 2
A71: Просмыцкая Валерия | B71: ЦТКиЭ Бобруйск | C71: 2008 | AB71: б/р
A72: Птушко Мария | B72: РЦЭК | C72: 2006 | AB72: б/р
A73: Рак Ольга | B73: Пуховичский р-н | C73: 1985 | G73: МС | O73: КМС | P73: КМС | Q73: КМС | AA73: МС | AB73: МС
A74: Ракитская Анастасия | B74: Хан-Тенгри | C74: 1994 | AB74: б/р
A75: Ревенкова Анастасия | B75: ГОЦТиКДиМ | C75: 2005 | H75: юн | J75: 1 юн | M75: 2 | N75: 1 юн | R75: 2 | AB75: 2
A76: Родионова Юна | B76: РЦЭК | C76: 2006 | AB76: б/р
A77: Романенко Екатерина | B77: СШ №1 г. Ветка | C77: 2001 | M77: 1 юн | N77: 1 юн | AB77: 1 юн
A78: Роткевич Ксения | B78: Фрунзенский ФОЦ | C78: 2004 | R78: юн | AB78: юн
A79: Русинович Светлана | B79: ГОЦТиКДиМ | C79: 1991 | AB79: б/р
A80: Савенкова Наталья | B80: ГОЦТиКДиМ | C80: 2005 | M80: 1 юн | N80: юн | S80: 1 юн | T80: 1 юн | AB80: 1 юн
A81: Самохвалова Анастасия | B81: Гомельская обл. | C81: 1997 | AB81: б/р
A82: Самсонова Мария | B82: С/к «Торпедо» Мг. | C82: 1984 | E82: КМС | AA82: КМС | AB82: КМС
A83: Семейко Галина | B83: Минск | C83: 1982 | G83: 1 | AB83: 1
A84: Сесицкая Виолетта | B84: ЦТКиЭ Бобруйск | C84: 2006 | AB84: б/р
A85: Сивчик Вероника | B85: Минск | C85: 1992 | G85: 2 | AB85: 2
A86: Суглоб Виктория | B86: ГОЦТиКДиМ | C86: 1998 | AB86: б/р
A87: Суслова София | B87: Пуховичский р-н | C87: 2001 | M87: юн | N87: юн | P87: юн | AB87: юн
A88: Сыродоева Мария | B88: РЦЭК | C88: 2004 | H88: юн | J88: юн | M88: юн | N88: 1 юн | R88: 1 юн | AB88: 1 юн
A89: Сычугова Александра | B89: ЦТКиЭ Бобруйск | C89: 2006 | AB89: б/р
A90: Титкина Дарья | B90: Хан-Тенгри | C90: 1986 | Q90: 2 | AB90: 2
A91: Федоркевич Светлана | B91: ГОЦТиКДиМ | C91: 1992 | E91: 1 | G91: КМС | AA91: 1 | AB91: КМС
A92: Хованиская Антонина | B92: Минск | C92: 2003 | AB92: б/р
A93: Чемякина Валентина | B93: Минск | C93: 1996 | G93: 1 | AA93: 2 | AB93: 1
A94: Черношей Вероника | B94: Речица | C94: 2001 | I94: юн | J94: 1 юн | AB94: 1 юн
A95: Чуйко Полина | B95: Минск | C95: 1990 | G95: 1 | AB95: 1
A96: Шаповал Екатерина | B96: Брестская область | C96: 2000 | Y96: юн | Z96: 3 | AB96: 3
A97: Широкая Ксения | B97: Могилевская область | C97: 2001 | H97: юн | Y97: 3 | AB97: 3
A98: Шишелякина Александра | B98: ГОЦТиКДиМ | C98: 1999 | AB98: б/р
A99: Шуляк Марина | B99: Хан-Тенгри | C99: 1989 | AB99: б/р
A100: Якубович Карина | B100: ЦТиКДМ г. Пинска | C100: 1998 | G100: 2 | AB100: 2

Sheet Лист1
A2: Подтвержденные разряды на 01.01.2015
A4: Фамилия, Имя | B4: г.р. | C4: разряд | E4: Фамилия, Имя | F4: г.р. | G4: разряд
A5: Аблажевич Виктор | B5: 2000 | C5: 2 | E5: Андреева Лена | F5: 1984 | G5: 2
A6: Аксенов Павел | B6: 1989 | C6: 1 | E6: Андреева Елена | F6: 1982 | G6: КМС
A7: Анищенко Павел | B7: 2000 | C7: 3 | E7: Астапова Анастасия | F7: 2002 | G7: 1 юн
A8: Астапов Максим | B8: 2001 | C8: 2 | E8: Баева Диана | F8: 2000 | G8: 2
A9: Астапчик Дмитрий | B9: 2003 | C9: юн | E9: Бардашевич Ульяна | F9: 2003 | G9: юн
A10: Астапчик Павел | B10: 2006 | C10: юн | E10: Болсун Софья | F10: 1998 | G10: юн
A11: Бабанов Игорь | B11: 1989 | C11: 1 | E11: Бурая Альбина | F11: 2002 | G11: 1 юн
A12: Батраков Андрей | B12: 1998 | C12: 2 | E12: Веретенникова Елена | F12: 1991 | G12: КМС
A13: Батура Дмитрий | B13: 2004 | C13: юн | E13: Верниковская Мария | F13: 2000 | G13: 2
A14: Беляцкий Артем | B14: 2002 | C14: 1 юн | E14: Верхоглядова Елена | F14: 1987 | G14: 1
A15: Беляцкий Артем | B15: 2002 | C15: 1 юн | E15: Гатальская Елизавета | F15: 2004 | G15: юн
A16: Бережной Максим | B16: 2000 | C16: юн | E16: Горбатовская Диана | F16: 2003 | G16: юн
A17: Бережной Тимофей | B17: 2003 | C17: 2 | E17: Гунько Наталья | F17: 2000 | G17: 3
A18: Бессер Родион | B18: 1981 | C18: 1 | E18: Данченко Дарья | F18: 1999 | G18: юн
A19: Бецковский Артем | B19: 2000 | C19: 3 | E19: Денисенко Мария | F19: 2000 | G19: юн
A20: Бобков Константин | B20: 2005 | C20: 2 | E20: Ермохина Анна | F20: 2003 | G20: 1 юн
A21: Болденко Валерий | B21: 1993 | C21: 1 | E21: Ермохина Дарья | F21: 1999 | G21: 1 юн
A22: Буйленков Павел | B22: 1993 | C22: КМС | E22: Жуковская Кристина | F22: 1998 | G22: 1 юн
A23: Бурый Алексей | B23: 2002 | C23: 2 | E23: Запорожченко Надежда | F23: 2005 | G23: юн
A24: Быкадоров Артем | B24: 2005 | C24: юн | E24: Зюзина Елена | F24: 1978 | G24: 1
A25: Вальковский Владимир | B25: 1992 | C25: КМС | E25: Калиновская Кристина | F25: 2003 | G25: юн
A26: Васильев Даниил | B26: 2000 | C26: 2 | E26: Канашкова Арина | F26: 2001 | G26: юн
A27: Ведерников Илья | B27: 2004 | C27: 2 | E27: Качан Ирина | F27: 2000 | G27: 2
A28: Веревкин Владислав | B28: 1999 | C28: юн | E28: Кобринец Карина | F28: 2000 | G28: юн
A29: Виниченко Андрей | B29: 1988 | C29: 1 | E29: Коноплева Марина | F29: 2001 | G29: 2
A30: Винчевский Максим | B30: 1991 | C30: 2 | E30: Кондратюк Дарья | F30: 2003 | G30: юн
A31: Волосович Дмитрий | B31: 1995 | C31: КМС | E31: Копусова Ксения | F31: 2001 | G31: 2
A32: Волчек Алексей | B32: 2001 | C32: 3 | E32: Кореневская Вероника | F32: 1997 | G32: 2
A33: Гатальский Дмитрий | B33: 2003 | C33: 1 юн | E33: Кузина Юлия | F33: 1999 | G33: 1
A34: Германович Олег | B34: 1999 | C34: юн | E34: Кузичева Таисия | F34: 2000 | G34: 2
A35: Главацкий Сергей | B35: 1998 | C35: 1 | E35: Кукевич Полина | F35: 2003 | G35: 2
A36: Головач Алексей | B36: 2003 | C36: 1 юн | E36: Кулешова Юлия | F36: 2001 | G36: 3
A37: Голубев Денис | B37: 1994 | C37: КМС | E37: Липкович Мария | F37: 2005 | G37: 2
A38: Голубев Сергей | B38: 1985 | C38: 1 | E38: Ленивко Анастасия | F38: 2004 | G38: юн
A39: Горолев Павел | B39: 1982 | C39: 2 | E39: Леоненко Татьяна | F39: 1999 | G39: 1 юн
A40: Грибовский Павел | B40: 1885 | C40: КМС | E40: Лясович Наталья | F40: 1985 | G40: 1
A41: Гришанов Григорий | B41: 2003 | C41: 1 юн | E41: Мисюкевич Александра | F41: 1994 | G41: 2
A42: Гусев Дмитрий | B42: 2003 | C42: 3 | E42: Малыженкова Лариса | F42: 1975 | G42: КМС
A43: Гутиков Роман | B43: 1989 | C43: 1 | E43: Мигунова Алена | F43: 2001 | G43: юн
A44: Давыдов Денис | B44: 2000 | C44: 1 | E44: Нажига Кристина | F44: 1998 | G44: 1 юн
A45: Даниленко Ярослав | B45: 2001 | C45: юн | E45: Нечесова Виталина | F45: 1998 | G45: 1 юн
A46: Дашук Евгений | B46: 2000 | C46: юн | E46: Никифоровец Юлия | F46: 2004 | G46: 1 юн
A47: Демешенко Александр | B47: 2001 | C47: 2 | E47: Огарко Екатерина | F47: 2002 | G47: 1 юн
A48: Демешко Александр | B48: 1994 | C48: 1 | E48: Осипенко Анастасия | F48: 2002 | G48: 3
A49: Денисевич Евгений | B49: 1994 | C49: КМС | E49: Пагудо Екатерина | F49: 2000 | G49: 2
A50: Денисман Юрий | B50: 1982 | C50: КМС | E50: Потапович Александрина | F50: 2003 | G50: 1 юн
A51: Добрянский Александр | B51: 1994 | C51: 1 | E51: Прокошина Алеся | F51: 2002 | G51: 2
A52: Долгов Вячеслав | B52: 1985 | C52: 2 | E52: Рак Ольга | F52: 1985 | G52: МС
A53: Драбинко Артур | B53: 1994 | C53: КМС | E53: Ревенкова Анастасия | F53: 2005 | G53: 2
A54: Дудянов Евгений | B54: 1996 | C54: 3 | E54: Романенко Екатерина | F54: 2001 | G54: 1 юн
A55: Дуло Кирилл | B55: 2003 | C55: юн | E55: Савенкова Наталья | F55: 2005 | G55: 1 юн
A56: Дюбенков Дмитрий | B56: 1992 | C56: КМС | E56: Самсонова Мария | F56: 1984 | G56: КМС
A57: Ермохин Вадим | B57: 2004 | C57: 1 юн | E57: Семейко Галина | F57: 1982 | G57: 1
A58: Есипенок Алексей | B58: 2004 | C58: юн | E58: Сивчик Вероника | F58: 1992 | G58: 2
A59: Живица Арсений | B59: 2000 | C59: 1 | E59: Суглоб Виктория | F59: 1998 | G59: 2
A60: Живица Елисей | B60: 2005 | C60: юн | E60: Суслова София | F60: 2001 | G60: юн
A61: Загорский Владислав | B61: 1998 | C61: юн | E61: Сыродоева Мария | F61: 2004 | G61: 1 юн
A62: Зайцев Даниил | B62: 2000 | C62: юн | E62: Федоркевич Светлана | F62: 1992 | G62: КМС
A63: Зборовский Андрей | B63: 2001 | C63: 1 юн | E63: Хованиская Антонина | F63: 2003 | G63: юн
A64: Зюзин Иван | B64: 2001 | C64: 1 | E64: Чемякина Валентина | F64: 1996 | G64: 1
A65: Зюзь Сергей | B65: 2001 | C65: 2 | E65: Черношей Вероника | F65: 2001 | G65: 1 юн
A66: Иванов Александр | B66: 1992 | C66: 2 | E66: Чуйко Полина | F66: 1990 | G66: 1
A67: Иванов Владислав | B67: 2000 | C67: юн | E67: Шаповал Екатерина | F67: 2000 | G67: 3
A68: Изидеров Никита | B68: 1994 | C68: КМС | E68: Широкая Ксения | F68: 2001 | G68: 3
A69: Ильинков Виталик | B69: 2003 | C69: юн | E69: Якубович Карина | F69: 1998 | G69: 2
A70: Кайдунов Антон | B70: 2004 | C70: юн
A71: Караваев Дмитрий | B71: 1993 | C71: КМС
A72: Карпов Роман | B72: 1981 | C72: 2
A73: Кириенко Кирилл | B73: 1988 | C73: 1
A74: Киселев Евгений | B74: 1999 | C74: 1
A75: Клюжев Александр | B75: 1997 | C75: МС
A76: Козловский Петр | B76: 1998 | C76: юн
A77: Косач Павел | B77: 2004 | C77: юн
A78: Кудрявцев Александр | B78: 2004 | C78: 1 юн
A79: Кузан Никита | B79: 2004 | C79: юн
A80: Кухоренко Максим | B80: 1985 | C80: 1
A81: Липский Кирилл | B81: 1984 | C81: 2
A82: Литвин Кирилл | B82: 2002 | C82: 2
A83: Логунов Никита | B83: 1999 | C83: КМС
A84: Ложкин Денис | B84: 1983 | C84: 1
A85: Лопухов Глеб | B85: 2003 | C85: 2
A86: Лысюк Виталий | B86: 2001 | C86: юн
A87: Магер Даниил | B87: 1998 | C87: юн
A88: Макаренко Виктор | B88: 2003 | C88: 2
A89: Максименя Александр | B89: 1975 | C89: 1
A90: Максименя Денис | B90: 1996 | C90: КМС
A91: Малаховский Александр | B91: 1985 | C91: КМС
A92: Миненко Игорь | B92: 1982 | C92: 2
A93: Мокеев Алексей | B93: 2002 | C93: юн
A94: Морозов Юрий | B94: 1992 | C94: КМС
A95: Найденшев Владимир | B95: 2002 | C95: 3
A96: Насиров Ренат | B96: 2004 | C96: юн
A97: Натрапов Егор | B97: 2001 | C97: юн
A98: Нестеренко Егор | B98: 2003 | C98: юн
A99: Никипелов Вадим | B99: 1998 | C99: юн
A100: Никифоровец Андрей | B100: 1974 | C100: МС
A101: Никифоровец Максим | B101: 1997 | C101: КМС
A102: Никоноров Дмитрий | B102: 1997 | C102: КМС
A103: Оверчук Даниил | B103: 2001 | C103: 1 юн
A104: Остроухов Егор | B104: 1973 | C104: 1
A105: Пагудо Евгений | B105: 2002 | C105: 3
A106: Пастухов Никита | B106: 2000 | C106: 1 юн
A107: Пахомов Александр | B107: 1983 | C107: КМС
A108: Пирожков Денис | B108: 1998 | C108: 1 юн
A109: Писарев Кирилл | B109: 2001 | C109: 1
A110: Подплетько Александр | B110: 2001 | C110: юн
A111: Покаместов Илья | B111: 1977 | C111: 1
A112: Поляков Александр | B112: 1982 | C112: 2
A113: Пристромов Антон | B113: 1988 | C113: КМС
A114: Прокопчик Ростислав | B114: 2003 | C114: юн
A115: Пуйто Антон | B115: 1998 | C115: 1
A116: Раманюга Максим | B116: 2003 | C116: юн
A117: Рожнов Владимир | B117: 1999 | C117: 2
A118: Рубенок Артем | B118: 1985 | C118: 1
A119: Рудавский Никита | B119: 1999 | C119: 2
A120: Руденко Вадим | B120: 2006 | C120: 1 юн
A121: Саунин Кирилл | B121: 1989 | C121: 1
A122: Свито Иван | B122: 1982 | C122: 1
A123: Сердаков Илья | B123: 1999 | C123: КМС
A124: Сивуха Максим | B124: 2003 | C124: 1 юн
A125: Силков Михаил | B125: 1997 | C125: 2
A126: Смирнов Даниил | B126: 2002 | C126: 3
A127: Соковых Евгений | B127: 1988 | C127: КМС
A128: Соломкин Александр | B128: 2005 | C128: 1 юн
A129: Сомов Денис | B129: 2003 | C129: 1 юн
A130: Сорокин Андрей | B130: 1998 | C130: 2
A131: Сосновский Никита | B131: 2005 | C131: 2
A132: Стариков Павел | B132: 1996 | C132: 2
A133: Степаненко Олег | B133: 2001 | C133: 1 юн
A134: Стрельский Максим | B134: 1998 | C134: 2
A135: Стрижевич Сергей | B135: 2006 | C135: юн
A136: Сухотский Дмитрий | B136: 1997 | C136: 3
A137: Сычев Николай | B137: 1978 | C137: 1
A138: Талдыкин Илья | B138: 2000 | C138: 2
A139: Тарасенко Владислав | B139: 1995 | C139: КМС
A140: Таршис Иван | B140: 1998 | C140: 1
A141: Тэнц Константин | B141: 2003 | C141: юн
A142: Федоринчик Антон | B142: 2002 | C142: 1 юн
A143: Федоров Игорь | B143: 1977 | C143: 1
A144: Федотов Сергей | B144: 1990 | C144: КМС
A145: Харчик Максим | B145: 1998 | C145: 3
A146: Хохлов Евгений | B146: 1991 | C146: 2
A147: Циркуно Александр | B147: 1988 | C147: 2
A148: Цымбалист Данила | B148: 2001 | C148: 2
A149: Ченуша Алексей | B149: 1969 | C149: 1
A150: Шелкович Антон | B150: 1986 | C150: 1
A151: Шишко Даниил | B151: 2002 | C151: юн
A152: Шпиганович Данила | B152: 2005 | C152: 1 юн
A153: Шпиганович Максим | B153: 2001 | C153: 3
A154: Шульпейкин Влад | B154: 2004 | C154: юн
A155: Юрковец Евгений | B155: 2000 | C155: 2
A156: Юхнюк Вячеслав | B156: 1999 | C156: 3
A157: Яковлев Никита | B157: 2001 | C157: юн
A158: Янкулин Станислав | B158: 1997 | C158: юн
A159: Яцыно Павел | B159: 1986 | C159: КМС
